Workbook

Sheet In (202001_0101)
A1: =In_def!H2 -> Automatic Routing Software / β20230521 / Gagaarin
C2: マス列 | F2: 20 | I2: 始点 | L2: S | O2: 経路点 | R2: ○ | U2: 評価(長さ) | X2: 1 | AA2: 計算法 | AD2: D法 | AG2: VRML出力 | AJ2: Y | AM2: 用途 | AP2: 上水給水管 | AS2: 施工場所 | AV2: 屋内隠蔽 | AY2: 単位損失 | BB2: 0.98
C3: マス行 | F3: 20 | I3: 終点 | L3: E | O3: 貫通経路点 | R3: ◎ | U3: 評価(曲がり) | X3: 2 | AA3: 1N計算法 | AD3: 総合法 | AG3: IFC出力 | AJ3: N | AM3: 接続工法 | AP3: ねじ込み | AS3: 工事項目 | AV3: 給水工事
C4: マス高 | F4: 1 | I4: 障害点 | L4: ■ | O4: 優先経路点 | R4: ◇ | U4: 評価(貫通) | X4: 3 | AA4: NN計算法 | AD4: TC法 | AG4: 円分割数 | AJ4: 16 | AM4: 管種 | AP4: SGP白 | AS4: 保温区分 | AV4: 1
C5: マス辺長 | F5: 500 | I5: 貫通障害点 | L5: □ | O5: 中間経路点 | U5: 評価(鳥居) | X5: 5 | AA5: 絞り込み | AD5: 低 | AG5: 作成面 | AJ5: 内外 | AM5: 定尺 | AP5: 2000 | AS5: 塗装区分 | AV5: 1
C6: 障害点数 | F6: 80 | I6: 優先点 | L6: ☆ | O6: 始点流量 | R6: 0 | U6: 評価(ソケット) | X6: 1 | AA6: 絞り込み2 | AD6: ランダム | AG6: 配管・ダクト | AJ6: 配管 | AM6: 最短長 | AP6: 100
C7: 貫通障害点数 | F7: 10 | I7: 中間点 | O7: 終点流量 | R7: 0 | U7: 評価(優先) | X7: -20 | AM7: 断熱厚さ | AP7: 0
C9: 始点座標
C10: 終点座標
C11: 経路文字列
C12: 経路長さ
C13: 曲がり数
C14: 貫通数
C15: 鳥居数
C16: ソケット数
C17: 優先数
C18: 経路評価
C19: 計算時間
C20: 1 | D20: 1 | E20: 2 | F20: 3 | G20: 4 | H20: 5 | I20: 6 | J20: 7 | K20: 8 | L20: 9 | M20: 10 | N20: 11 | O20: 12 | P20: 13 | Q20: 14 | R20: 15 | S20: 16 | T20: 17 | U20: 18 | V20: 19 | W20: 20
C21: 1 | D21: S1 | G21: □ | H21: ■ | K21: □ | N21: ■ | S21: ■ | U21: ■ | V21: ■
C22: 2 | H22: ■ | N22: ■ | P22: ■ | Q22: ■ | T22: ■
C23: 3 | N23: ■ | R23: ■
C24: 4 | H24: ■ | N24: ■ | W24: ■
C25: 5 | E25: ■ | J25: ■ | K25: ■ | M25: ■ | S25: ■ | T25: ■ | V25: ■
C26: 6 | F26: ■ | H26: ■ | Q26: ■ | T26: □
C27: 7 | G27: ■ | M27: ■ | T27: ■ | U27: □ | V27: ■
C28: 8 | G28: ■ | H28: □ | I28: □ | J28: □ | L28: ■ | R28: E | W28: ■
C29: 9 | H29: ■ | M29: ■ | P29: □ | Q29: ■
C30: 10 | E30: ■ | I30: ■ | J30: ■ | K30: ■ | L30: ■ | M30: ■ | P30: □ | S30: ■ | W30: ■
C31: 11 | D31: ■ | O31: ■ | P31: □ | S31: ■
C32: 12 | K32: ■ | O32: ■ | P32: □ | S32: ■ | T32: ■ | V32: ■ | W32: ■
C33: 13 | I33: ■ | O33: ■ | P33: □ | R33: ■ | T33: ■ | V33: ■ | W33: ■
C34: 14 | E34: E | G34: □ | K34: ■ | N34: ■
C35: 15 | G35: ■ | P35: □ | R35: ■ | V35: ■ | W35: ■
C36: 16 | L36: ■ | P36: □ | T36: ■ | U36: ■
C37: 17 | D37: ■ | F37: ■ | H37: ☆ | I37: ☆ | J37: ☆ | K37: ☆ | N37: ■ | R37: ■ | V37: ■ | W37: ■
C38: 18 | L38: ■ | M38: ■ | U38: ■ | V38: □ | W38: ■
C39: 19 | E39: ■ | G39: ■ | I39: ■ | R39: ■ | S39: ■
C40: 20 | D40: ■ | K40: ■ | M40: ■ | T40: ■ | W40: E1

Sheet In (101003_0101)
A1: =In_def!H2 -> Automatic Routing Software / β20230521 / Gagaarin
C2: マス列 | F2: 10 | I2: 始点 | L2: S | O2: 経路点 | R2: ○ | U2: 評価(長さ) | X2: 1 | AA2: 計算法 | AD2: D法 | AG2: VRML出力 | AJ2: Y | AM2: 用途 | AP2: 上水給水管 | AS2: 施工場所 | AV2: 屋内隠蔽 | AY2: 単位損失 | BB2: 0.98
C3: マス行 | F3: 10 | I3: 終点 | L3: E | O3: 貫通経路点 | R3: ◎ | U3: 評価(曲がり) | X3: 2 | AA3: 1N計算法 | AD3: 総合法 | AG3: IFC出力 | AJ3: Y1.3 | AM3: 接続工法 | AP3: ねじ込み | AS3: 工事項目 | AV3: 給水工事
C4: マス高 | F4: 3 | I4: 障害点 | L4: ■ | O4: 優先経路点 | R4: ◇ | U4: 評価(貫通) | X4: 3 | AA4: NN計算法 | AD4: TC法 | AG4: 円分割数 | AJ4: 16 | AM4: 管種 | AP4: SGP白 | AS4: 保温区分 | AV4: 1
C5: マス辺長 | F5: 500 | I5: 貫通障害点 | L5: □ | O5: 中間経路点 | U5: 評価(鳥居) | X5: 5 | AA5: 絞り込み | AD5: 低 | AG5: 作成面 | AJ5: 内外 | AM5: 定尺 | AP5: 2000 | AS5: 塗装区分 | AV5: 1
C6: 障害点数 | F6: 30 | I6: 優先点 | L6: ☆ | O6: 始点流量 | R6: 0 | U6: 評価(ソケット) | X6: 1 | AA6: 絞り込み2 | AD6: ランダム | AG6: 配管・ダクト | AJ6: 配管 | AM6: 最短長 | AP6: 100
C7: 貫通障害点数 | F7: 30 | I7: 中間点 | O7: 終点流量 | R7: 300 | U7: 評価(優先) | X7: -5 | AM7: 断熱厚さ | AP7: 0
C9: 始点座標
C10: 終点座標
C11: 経路文字列
C12: 経路長さ
C13: 曲がり数
C14: 貫通数
C15: 鳥居数
C16: ソケット数
C17: 優先数
C18: 経路評価
C19: 計算時間
C20: 1 | D20: 1 | E20: 2 | F20: 3 | G20: 4 | H20: 5 | I20: 6 | J20: 7 | K20: 8 | L20: 9 | M20: 10 | N20: 2 | O20: 1 | P20: 2 | Q20: 3 | R20: 4 | S20: 5 | T20: 6 | U20: 7 | V20: 8 | W20: 9 | X20: 10 | Y20: 3 | Z20: 1 | AA20: 2 | AB20: 3 | AC20: 4 | AD20: 5 | AE20: 6 | AF20: 7 | AG20: 8 | AH20: 9 | AI20: 10
C21: 1 | D21: S | F21: □ | N21: 1 | R21: □ | Y21: 1 | AA21: ■ | AD21: ■ | AI21: ■
C22: 2 | H22: ■ | I22: □ | N22: 2 | X22: □ | Y22: 2 | AA22: ■ | AI22: □
C23: 3 | D23: ■ | M23: □ | N23: 3 | P23: □ | X23: ■ | Y23: 3 | AB23: ■ | AC23: □ | AD23: ■ | AH23: □
C24: 4 | F24: □ | H24: □ | J24: □ | K24: ■ | L24: □ | N24: 4 | P24: □ | T24: ■ | Y24: 4 | AB24: □
C25: 5 | I25: □ | N25: 5 | P25: ■ | S25: ☆ | X25: □ | Y25: 5 | AA25: □ | AE25: ■
C26: 6 | N26: 6 | Q26: □ | S26: ☆ | T26: ☆ | V26: ■ | Y26: 6 | AE26: □
C27: 7 | J27: ■ | K27: ■ | N27: 7 | O27: □ | X27: ■ | Y27: 7 | AB27: ■ | AD27: □
C28: 8 | E28: □ | L28: □ | N28: 8 | S28: □ | U28: ■ | X28: □ | Y28: 8 | Z28: □ | AC28: ■ | AI28: □
C29: 9 | G29: ■ | N29: 9 | T29: ■ | W29: ■ | Y29: 9 | AF29: ■ | AH29: ■
C30: 10 | F30: ■ | K30: ■ | N30: 10 | Q30: ■ | S30: □ | V30: ■ | Y30: 10 | AD30: ■ | AG30: □ | AI30: E

Sheet Out
A1: Step | B1: 始点列 | C1: 始点行 | D1: 始点高 | E1: 終点列 | F1: 終点行 | G1: 終点高 | H1: 経路文字列
A2: 1 | B2: 1 | C2: 1 | D2: 1 | E2: 20 | F2: 20 | G2: 1 | H2: SSSSSSSSEEESESSSSSSSEEESSEEEENEEEEESEEES

Sheet History
A1: Specification and History
A3: No. | B3: Date | C3: Description
A4: 1 | B4: 2013-12-25 | C4: 1st revision..
A5: 2 | B5: 2013-12-27 | C5: Concept of space map was implemented.
A6: 3 | B6: 2013-12-28 | C6: Concept of comparison of one more ways was implemented. Priority is only left - right direction or upper - lower direction.
A7: 4 | B7: 2014-01-07 | C7: Input sheet was modified.
A8: 5 | B8: 2014-01-07 | C8: Step by step check was added.
A9: 6 | B9: 2014-01-09 | C9: String of path was added.
A10: 7 | B10: 2014-01-25 | C10: Search of Manhattan distance area was implemented.
A11: 8 | B11: 2014-02-07 | C11: Small letter can be used for start-point and others.
A12: 9 | B12: 2014-02-23 | C12: Automatic setting obstacle was added.
A13: 10 | B13: 2014-02-24 | C13: Initialization was modified. Cell border can be re-written.
A14: 11 | B14: 2014-02-24 | C14: Estimation by length and turns was modified.
A15: 12 | B15: 2014-03-12 | C15: Search method was modified. If number of turns in calculating exceed set number, calculation will stop.
A16: 13 | B16: 2014-03-20 | C16: Show of calculation time was corrected.
A17: 14 | B17: 2014-03-20 | C17: Search method was modified. If path in calculating conflict obstacle, calculation will stop.
A18: 15 | B18: 2014-03-30 | C18: Input2 sheet was added. Item's name, location and other can be defined in this sheet. Input2 was renamed to In_def after.
A19: 16 | B19: 2014-04-06 | C19: Map space was extended to 3 Dimensions.
A20: 17 | B20: 2014-04-06 | C20: Input3 sheet was added. Character of VRML element can be defined in this sheet. Input3 was renamed to In_M after.
A21: 18 | B21: 2014-04-06 | C21: VRML file can be generated.
A22: 19 | B22: 2014-04-08 | C22: Obstacle that can be penetrated by path became to be added.
A23: 20 | B23: 2014-04-14 | C23: Output sheet was added. Path can be saved.
A24: 21 | B24: 2014-04-14 | C24: More than 1 both start and end point can be handled.
A25: 22 | B25: 2014-04-28 | C25: Turning back (Detour) search was added.
A26: 23 | B26: 2014-04-29 | C26: Some bugs were fixed.
A27: 24 | B27: 2014-05-13 | C27: 1 start point and more than 1 end point can be handled by sameness method.
A28: 25 | B28: 2014-06-11 | C28: 1 start point and more than 1 end point connection logic was modified by center of gravity method.
A29: 26 | B29: 2014-07-23 | C29: Some bugs were fixed.
A30: 27 | B30: 2014-07-26 | C30: 1 start point and more than 1 end point connection logic was modified by order method.
A31: 28 | B31: 2014-07-26 | C31: Sameness method, Center of gravity method and Order method can be selected by input condition.
A32: 29 | B32: 2014-07-28 | C32: Baloon for point in VRML were added.
A33: 30 | B33: 2014-07-29 | C33: 1 start point and more than 1 end point connection logic was modified by reverse order method.
A34: 31 | B34: 2014-07-29 | C34: VRML file name was modified by Date and Grid number.
A35: 32 | B35: 2014-07-29 | C35: All input sheet including 'Run' Button can be effective.
A36: 33 | B36: 2014-07-30 | C36: Not existing name included in sheet was removed.
A37: 34 | B37: 2014-08-04 | C37: VRML file had viewpoint data.
A38: 35 | B38: 2014-08-11 | C38: Some bugs were fixed.
A39: 36 | B39: 2014-08-12 | C39: Center of gravity method was modified as like as Order method.
A40: 36 | B40: 2014-08-12 | C40: Path size was defined by sheet.
A41: 37 | B41: 2014-08-14 | C41: Path was expressed by cylinder.
A42: 38 | B42: 2014-09-29 | C42: Pipe and fitting at actual size can be generated.
A43: 39 | B43: 2014-10-31 | C43: Sheet defining building conditions was added. Sheet name is In_Bld.
A44: 40 | B44: 2015-02-16 | C44: Some bugs about added sheet were fixed (adjustment).
A45: 41 | B45: 2015-02-17 | C45: IFC file became generated (pipe, N, S, T, X).
A46: 42 | B46: 2015-02-19 | C46: IFC file became generated (all included L).
A47: 43 | B47: 2015-02-20 | C47: Some bugs about getting vector of fitting was fixed.
A48: 44 | B48: 2015-03-03 | C48: IFC file can be generated with property set.
A49: 45 | B49: 2015-07-23 | C49: Routing method by estimation was added. Also Rooting method by turn was remained. Rooting method by turn was removed after.
A50: 46 | B50: 2015-07-31 | C50: Dijkstra's algorithm was adopted for routing caluculation.
A51: 47 | B51: 2015-11-30 | C51: Dijkstra's algorithm was adopted for routing caluculation more normaly. It is effective to going back search smoothy.
A52: 48 | B52: 2015-12-07 | C52: Up & Down amount can be estimated as well as pipe length, turnamount and sleeve amount.
A53: 49 | B53: 2015-12-09 | C53: Socket amount can be estmated.
A54: 50 | B54: 2015-12-15 | C54: Prior point can be estimated.
A55: 51 | B55: 2016-01-06 | C55: Tatch and Cross method was adopted for routing calculation.
A56: 52 | B56: 2016-02-08 | C56: 1 start point and more than 1 end point can be handled by Integration method.
A57: 51 | B57: 2016-02-10 | C57: Tatch and Cross method was adopted for routing calculation to more than both 1 start point and end point.
A58: 53 | B58: 2016-02-12 | C58: Direction of start point and end point can be set.
A59: 54 | B59: 2016-03-14 | C59: 'BS IFC data definition ver1.3' was applied.
A60: 55 | B60: 2016-03-14 | C60: Culculation input cells was modified as from 4 lines to 6lines.
A61: 56 | B61: 2016-05-20 | C61: Calculation time can be shown as only for calculation.
A62: 57 | B62: 2016-05-23 | C62: Showing of calculation result was modified as 2 lines to 11 lines.
A63: 58 | B63: 2016-06-25 | C63: Turning in obstacle that can be penetrated was prohibited.
A64: 59 | B64: 2016-06-26 | C64: ReShow' was modified.
A65: 60 | B65: 2016-07-25 | C65: Spiral duct was applied. But pipe and spiral duct cannot be changed automatically.
A66: 61 | B66: 2016-07-26 | C66: Expression of elbow's face was improved horizontaly and vertically..
A67: 62 | B67: 2016-11-21 | C67: Calculation grid can be shown by using IfcAnnotation.
A68: 63 | B68: 2016-12-20 | C68: Bug for finding plural end points was fixed.
A69: 64 | B69: 2016-12-20 | C69: Method of deciding kind of fitting was improved.
A70: 65 | B70: 2016-12-26 | C70: Socket shape can be generated in pipe.
A71: 66 | B71: 2016-12-27 | C71: Parts list file can be generated.
A72: 67 | B72: 2017-01-04 | C72: Definition of fitting 'W' was added.
A73: 68 | B73: 2017-01-20 | C73: Order method was adopted to more than 1 both start and end point.
A74: 69 | B74: 2023-05-01 | C74: IFC data output was removed because IFC Server cannot be used.
A75: 70 | B75: 2023-05-21 | C75: Sgn function was replaced to SgnRep function for 64bit Excel.
A76: 71 | B76: 2023-07-30 | C76: Bag fix about 1:N calculation.
A77: 72
A78: 73
A79: 74
A80: 75

Sheet In_def
A1: Key | B1: 名称表示行 | C1: 名称表示列 | D1: 表示名称 | E1: 値表示行 | F1: 値表示列 | G1: 値種別 | H1: 値既定 | I1: 備考
A2: アプリ情報 | E2: 1 | F2: 1 | G2: 文字 | H2: Automatic Routing Software / β20230521 / Gagaarin
A3: 動作環境 | E3: 1 | F3: 21 | G3: 文字 | H3: None.
A4: マス列 | B4: 2 | C4: 3 | D4: マス列 | E4: 2 | F4: 6 | G4: 整数 | H4: 20
A5: マス行 | B5: 3 | C5: 3 | D5: マス行 | E5: 3 | F5: 6 | G5: 整数 | H5: 20
A6: マス高 | B6: 4 | C6: 3 | D6: マス高 | E6: 4 | F6: 6 | G6: 整数 | H6: 3
A7: マス辺長 | B7: 5 | C7: 3 | D7: マス辺長 | E7: 5 | F7: 6 | G7: 整数 | H7: 500
A8: 障害点数 | B8: 6 | C8: 3 | D8: 障害点数 | E8: 6 | F8: 6 | G8: 整数 | H8: 30
A9: 貫通障害点数 | B9: 7 | C9: 3 | D9: 貫通障害点数 | E9: 7 | F9: 6 | G9: 整数 | H9: 30
A10: 始点 | B10: 2 | C10: 9 | D10: 始点 | E10: 2 | F10: 12 | G10: 文字 | H10: S
A11: 終点 | B11: 3 | C11: 9 | D11: 終点 | E11: 3 | F11: 12 | G11: 文字 | H11: E
A12: 障害点 | B12: 4 | C12: 9 | D12: 障害点 | E12: 4 | F12: 12 | G12: 文字 | H12: ■
A13: 貫通障害点 | B13: 5 | C13: 9 | D13: 貫通障害点 | E13: 5 | F13: 12 | G13: 文字 | H13: □
A14: 優先点 | B14: 6 | C14: 9 | D14: 優先点 | E14: 6 | F14: 12 | G14: 文字 | H14: ☆
A15: 中間点 | B15: 7 | C15: 9 | D15: 中間点 | E15: 7 | F15: 12 | G15: 文字
A16: 経路点 | B16: 2 | C16: 15 | D16: 経路点 | E16: 2 | F16: 18 | G16: 文字 | H16: ○
A17: 貫通経路点 | B17: 3 | C17: 15 | D17: 貫通経路点 | E17: 3 | F17: 18 | G17: 文字 | H17: ◎
A18: 優先経路点 | B18: 4 | C18: 15 | D18: 優先経路点 | E18: 4 | F18: 18 | G18: 文字 | H18: ◇
A19: 中間経路点 | B19: 5 | C19: 15 | D19: 中間経路点 | E19: 5 | F19: 18 | G19: 文字
A20: 始点流量 | B20: 6 | C20: 15 | D20: 始点流量 | E20: 6 | F20: 18 | G20: 整数 | H20: 0
A21: 終点流量 | B21: 7 | C21: 15 | D21: 終点流量 | E21: 7 | F21: 18 | G21: 整数 | H21: 100
A22: 評価(長さ) | B22: 2 | C22: 21 | D22: 評価(長さ) | E22: 2 | F22: 24 | G22: 整数 | H22: 1
A23: 評価(曲がり) | B23: 3 | C23: 21 | D23: 評価(曲がり) | E23: 3 | F23: 24 | G23: 整数 | H23: 2
A24: 評価(貫通) | B24: 4 | C24: 21 | D24: 評価(貫通) | E24: 4 | F24: 24 | G24: 整数 | H24: 3
A25: 評価(鳥居) | B25: 5 | C25: 21 | D25: 評価(鳥居) | E25: 5 | F25: 24 | G25: 整数 | H25: 2
A26: 評価(ソケット) | B26: 6 | C26: 21 | D26: 評価(ソケット) | E26: 6 | F26: 24 | G26: 整数 | H26: 2
A27: 評価(優先) | B27: 7 | C27: 21 | D27: 評価(優先) | E27: 7 | F27: 24 | G27: 整数 | H27: -1
A28: 計算法 | B28: 2 | C28: 27 | D28: 計算法 | E28: 2 | F28: 30 | G28: 文字 | H28: D
A29: 1N計算法 | B29: 3 | C29: 27 | D29: 1N計算法 | E29: 3 | F29: 30 | G29: 文字 | H29: 重心法
A30: NN計算法 | B30: 4 | C30: 27 | D30: NN計算法 | E30: 4 | F30: 30 | G30: 文字 | H30: 重心法
A31: 絞り込み | B31: 5 | C31: 27 | D31: 絞り込み | E31: 5 | F31: 30 | G31: 文字 | H31: 低
A32: 絞り込み2 | B32: 6 | C32: 27 | D32: 絞り込み2 | E32: 6 | F32: 30 | G32: 文字 | H32: 先頭
A33: VRML出力 | B33: 2 | C33: 33 | D33: VRML出力 | E33: 2 | F33: 36 | G33: 文字 | H33: Y
A34: IFC出力 | B34: 3 | C34: 33 | D34: IFC出力 | E34: 3 | F34: 36 | G34: 文字 | H34: N
A35: 円分割数 | B35: 4 | C35: 33 | D35: 円分割数 | E35: 4 | F35: 36 | G35: 整数 | H35: 16
A36: 作成面 | B36: 5 | C36: 33 | D36: 作成面 | E36: 5 | F36: 36 | G36: 文字 | H36: 内外
A37: 配管・ダクト | B37: 6 | C37: 33 | D37: 配管・ダクト | E37: 6 | F37: 36 | G37: 文字 | H37: 配管
A38: 用途 | B38: 2 | C38: 39 | D38: 用途 | E38: 2 | F38: 42 | G38: 文字 | H38: A00 | I38: コード出力
A39: 接続工法 | B39: 3 | C39: 39 | D39: 接続工法 | E39: 3 | F39: 42 | G39: 文字 | H39: ねじ込み | I39: コード出力
A40: 管種 | B40: 4 | C40: 39 | D40: 管種 | E40: 4 | F40: 42 | G40: 文字 | H40: SGP白 | I40: コード出力
A41: 定尺 | B41: 5 | C41: 39 | D41: 定尺 | E41: 5 | F41: 42 | G41: 整数 | H41: 4000
A42: 最短長 | B42: 6 | C42: 39 | D42: 最短長 | E42: 6 | F42: 42 | G42: 整数 | H42: 100
A43: 断熱厚さ | B43: 7 | C43: 39 | D43: 断熱厚さ | E43: 7 | F43: 42 | G43: 整数 | H43: 20
A44: 施工場所 | B44: 2 | C44: 45 | D44: 施工場所 | E44: 2 | F44: 48 | G44: 文字 | H44: 屋内隠蔽 | I44: 文字列出力
A45: 工事項目 | B45: 3 | C45: 45 | D45: 工事項目 | E45: 3 | F45: 48 | G45: 文字 | H45: 給水工事 | I45: 文字列出力
A46: 保温区分 | B46: 4 | C46: 45 | D46: 保温区分 | E46: 4 | F46: 48 | G46: 文字 | H46: 1 | I46: コード出力
A47: 塗装区分 | B47: 5 | C47: 45 | D47: 塗装区分 | E47: 5 | F47: 48 | G47: 文字 | H47: 1 | I47: コード出力
A48: 単位損失 | B48: 2 | C48: 51 | D48: 単位損失 | E48: 2 | F48: 54 | G48: 実数 | H48: 0.98
A49: 始点座標 | B49: 9 | C49: 3 | D49: 始点座標 | E49: 9 | F49: 6 | G49: 文字
A50: 終点座標 | B50: 10 | C50: 3 | D50: 終点座標 | E50: 10 | F50: 6 | G50: 文字
A51: 経路文字列 | B51: 11 | C51: 3 | D51: 経路文字列 | E51: 11 | F51: 6 | G51: 文字
A52: 経路長さ | B52: 12 | C52: 3 | D52: 経路長さ | E52: 12 | F52: 6 | G52: 文字
A53: 曲がり数 | B53: 13 | C53: 3 | D53: 曲がり数 | E53: 13 | F53: 6 | G53: 文字
A54: 貫通数 | B54: 14 | C54: 3 | D54: 貫通数 | E54: 14 | F54: 6 | G54: 文字
A55: 鳥居数 | B55: 15 | C55: 3 | D55: 鳥居数 | E55: 15 | F55: 6 | G55: 文字
A56: ソケット数 | B56: 16 | C56: 3 | D56: ソケット数 | E56: 16 | F56: 6 | G56: 文字
A57: 優先数 | B57: 17 | C57: 3 | D57: 優先数 | E57: 17 | F57: 6 | G57: 文字
A58: 経路評価 | B58: 18 | C58: 3 | D58: 経路評価 | E58: 18 | F58: 6 | G58: 文字
A59: 計算時間 | B59: 19 | C59: 3 | D59: 計算時間 | E59: 19 | F59: 6 | G59: 文字
A60: マス | B60: 20 | C60: 3 | D60: マス | E60: 20 | F60: 3 | G60: 文字

Sheet In_M
A1: key | B1: description | C1: diffuseColorR | D1: diffuseColorG | E1: diffuseColorB | F1: transparency
A2: 空 | B2: sky | C2: 0.9 | D2: 1 | E2: 1 | F2: 0
A3: 地面 | B3: ground | C3: 1 | D3: 1 | E3: 0.9 | F3: 0
A4: マス | B4: grid | C4: 0.5 | D4: 0.5 | E4: 0.5 | F4: 0
A5: 始点 | B5: start point | C5: 0.5 | D5: 1 | E5: 1 | F5: 0.5
A6: 終点 | B6: end point | C6: 1 | D6: 1 | E6: 0.5 | F6: 0.5
A7: 障害点 | B7: obstacle | C7: 0.3 | D7: 0.3 | E7: 0.3 | F7: 0.3
A8: 貫通障害点 | B8: penetratable obstacle | C8: 0.5 | D8: 0.5 | E8: 0.5 | F8: 0.5
A9: 優先点 | B9: priority | C9: 0.5 | D9: 0.7 | E9: 0.5 | F9: 0.5
A10: 中間点 | B10: way | C10: 0.5 | D10: 0.5 | E10: 0.7 | F10: 0.5
A11: 経路点 | B11: path | C11: 1 | D11: 0.5 | E11: 1 | F11: 0.5
A12: 貫通経路点 | B12: path thru obstacle | C12: 1 | D12: 0.5 | E12: 0.5 | F12: 0.5
A13: 優先経路点 | B13: path thru priority | C13: 0.5 | D13: 1 | E13: 0.5 | F13: 0.5
A14: 中間経路点 | B14: path thru way | C14: 0.5 | D14: 0.5 | E14: 1 | F14: 0.5
A15: 配管直管 | B15: pipe | C15: 1 | D15: 0.5 | E15: 1 | F15: 0.5
A16: 配管継手L | B16: fitting L | C16: 1 | D16: 0.5 | E16: 1 | F16: 0.5
A17: 配管継手T | B17: fitting T | C17: 1 | D17: 0.5 | E17: 1 | F17: 0.5
A18: 配管継手W | B18: fitting T | C18: 1 | D18: 0.5 | E18: 1 | F18: 0.5
A19: 配管継手X | B19: fitting X | C19: 1 | D19: 0.5 | E19: 1 | F19: 0.5
A20: 配管継手S | B20: fitting S | C20: 1 | D20: 0.5 | E20: 1 | F20: 0.5
A21: 配管継手N | B21: fitting N | C21: 1 | D21: 0.5 | E21: 1 | F21: 0.5
A22: 丸ダクト直管 | B22: circular duct | C22: 0.5 | D22: 1 | E22: 1 | F22: 0.5
A23: 丸ダクト継手L | B23: fitting L | C23: 0.5 | D23: 1 | E23: 1 | F23: 0.5
A24: 丸ダクト継手T | B24: fitting T | C24: 0.5 | D24: 1 | E24: 1 | F24: 0.5
A25: 丸ダクト継手W | B25: fitting T | C25: 0.5 | D25: 1 | E25: 1 | F25: 0.5
A26: 丸ダクト継手X | B26: fitting X | C26: 0.5 | D26: 1 | E26: 1 | F26: 0.5
A27: 丸ダクト継手S | B27: fitting S | C27: 0.5 | D27: 1 | E27: 1 | F27: 0.5
A28: 丸ダクト継手N | B28: fitting N | C28: 0.5 | D28: 1 | E28: 1 | F28: 0.5
A29: 角ダクト直管 | B29: rectangular duct | C29: 0.5 | D29: 1 | E29: 1 | F29: 0.5
A30: 角ダクト継手L | B30: fitting L | C30: 0.5 | D30: 1 | E30: 1 | F30: 0.5
A31: 角ダクト継手T | B31: fitting T | C31: 0.5 | D31: 1 | E31: 1 | F31: 0.5
A32: 角ダクト継手W | B32: fitting T | C32: 0.5 | D32: 1 | E32: 1 | F32: 0.5
A33: 角ダクト継手X | B33: fitting X | C33: 0.5 | D33: 1 | E33: 1 | F33: 0.5
A34: 角ダクト継手S | B34: fitting S | C34: 0.5 | D34: 1 | E34: 1 | F34: 0.5
A35: 角ダクト継手N | B35: fitting N | C35: 0.5 | D35: 1 | E35: 1 | F35: 0.5
A36: 楕円ダクト直管 | B36: oval duct | C36: 0.5 | D36: 1 | E36: 1 | F36: 0.5
A37: 楕円ダクト継手L | B37: fitting L | C37: 0.5 | D37: 1 | E37: 1 | F37: 0.5
A38: 楕円ダクト継手T | B38: fitting T | C38: 0.5 | D38: 1 | E38: 1 | F38: 0.5
A39: 楕円ダクト継手W | B39: fitting T | C39: 0.5 | D39: 1 | E39: 1 | F39: 0.5
A40: 楕円ダクト継手X | B40: fitting X | C40: 0.5 | D40: 1 | E40: 1 | F40: 0.5
A41: 楕円ダクト継手S | B41: fitting S | C41: 0.5 | D41: 1 | E41: 1 | F41: 0.5
A42: 楕円ダクト継手N | B42: fitting N | C42: 0.5 | D42: 1 | E42: 1 | F42: 0.5

Sheet In_PDc
A1: pipe_nominal_dia | B1: pipe_thickness | C1: pipe_outer_dia | D1: pipe_inner_dia | E1: fitting_outer_dia | F1: fitting_inner_dia | G1: length_connection | H1: press_loss | I1: flow_volume | J1: flow_velocity | K1: flow_velocity_class
A2: 75 | B2: 0.5 | C2: =A2+B2*2 -> 76 | D2: =A2 -> 75 | E2: =A2 -> 75 | F2: =E2-B2*2 -> 74 | G2: =IF(A2<150,60,IF(A2<325,80,100)) -> 60 | H2: 0.98 | I2: =ROUND(((H2/9.8)*((D2/1000)^4.92)/0.0019113)^(1/1.845)*3600,0) -> 31 | J2: =ROUND((I2/3600)/(((D2/2)/1000)^2*3.1416),1) -> 1.9 | K2: =IF(J2<15,"low-speed","high-speed") -> low-speed
A3: 100 | B3: 0.5 | C3: 101 | D3: =A3 -> 100 | E3: =A3 -> 100 | F3: 99 | G3: 60 | H3: =H$2 -> 0.98 | I3: 66 | J3: 2.3 | K3: =IF(J3<15,"low-speed","high-speed") -> low-speed
A4: 125 | B4: 0.5 | C4: 126 | D4: =A4 -> 125 | E4: =A4 -> 125 | F4: 124 | G4: 60 | H4: 0.98 | I4: 120 | J4: 2.7 | K4: low-speed
A5: 150 | B5: 0.5 | C5: 151 | D5: 150 | E5: 150 | F5: 149 | G5: 80 | H5: 0.98 | I5: 195 | J5: 3.1 | K5: low-speed
A6: 175 | B6: 0.5 | C6: 176 | D6: 175 | E6: 175 | F6: 174 | G6: 80 | H6: 0.98 | I6: 295 | J6: 3.4 | K6: low-speed
A7: 200 | B7: 0.5 | C7: 201 | D7: 200 | E7: 200 | F7: 199 | G7: 80 | H7: 0.98 | I7: 421 | J7: 3.7 | K7: low-speed
A8: 225 | B8: 0.5 | C8: 226 | D8: 225 | E8: 225 | F8: 224 | G8: 80 | H8: 0.98 | I8: 576 | J8: 4 | K8: low-speed
A9: 250 | B9: 0.5 | C9: 251 | D9: 250 | E9: 250 | F9: 249 | G9: 80 | H9: 0.98 | I9: 763 | J9: 4.3 | K9: low-speed
A10: 275 | B10: 0.5 | C10: 276 | D10: 275 | E10: 275 | F10: 274 | G10: 80 | H10: 0.98 | I10: 983 | J10: 4.6 | K10: low-speed
A11: 300 | B11: 0.5 | C11: 301 | D11: 300 | E11: 300 | F11: 299 | G11: 80 | H11: 0.98 | I11: 1240 | J11: 4.9 | K11: low-speed
A12: 325 | B12: 0.6 | C12: 326.2 | D12: 325 | E12: 325 | F12: 323.8 | G12: 100 | H12: 0.98 | I12: 1535 | J12: 5.1 | K12: low-speed
A13: 350 | B13: 0.6 | C13: 351.2 | D13: 350 | E13: 350 | F13: 348.8 | G13: 100 | H13: 0.98 | I13: 1871 | J13: 5.4 | K13: low-speed
A14: 375 | B14: 0.6 | C14: 376.2 | D14: 375 | E14: 375 | F14: 373.8 | G14: 100 | H14: 0.98 | I14: 2249 | J14: 5.7 | K14: low-speed
A15: 400 | B15: 0.6 | C15: 401.2 | D15: 400 | E15: 400 | F15: 398.8 | G15: 100 | H15: 0.98 | I15: 2671 | J15: 5.9 | K15: low-speed
A16: 450 | B16: 0.6 | C16: 451.2 | D16: 450 | E16: 450 | F16: 448.8 | G16: 100 | H16: 0.98 | I16: 3656 | J16: 6.4 | K16: low-speed
A17: 500 | B17: 0.6 | C17: 501.2 | D17: 500 | E17: 500 | F17: 498.8 | G17: 100 | H17: 0.98 | I17: 4843 | J17: 6.9 | K17: low-speed
A18: 550 | B18: 0.6 | C18: 551.2 | D18: 550 | E18: 550 | F18: 548.8 | G18: 100 | H18: 0.98 | I18: 6244 | J18: 7.3 | K18: low-speed
A19: 600 | B19: 0.6 | C19: 601.2 | D19: 600 | E19: 600 | F19: 598.8 | G19: 100 | H19: 0.98 | I19: 7875 | J19: 7.7 | K19: low-speed
A20: 650 | B20: 0.8 | C20: 651.6 | D20: 650 | E20: 650 | F20: 648.4 | G20: 100 | H20: 0.98 | I20: 9748 | J20: 8.2 | K20: low-speed
A21: 700 | B21: 0.8 | C21: 701.6 | D21: 700 | E21: 700 | F21: 698.4 | G21: 100 | H21: 0.98 | I21: 11878 | J21: 8.6 | K21: low-speed
A22: 750 | B22: 0.8 | C22: 751.6 | D22: 750 | E22: 750 | F22: 748.4 | G22: 100 | H22: 0.98 | I22: 14278 | J22: 9 | K22: low-speed
A23: 800 | B23: 0.8 | C23: 801.6 | D23: 800 | E23: 800 | F23: 798.4 | G23: 100 | H23: 0.98 | I23: 16959 | J23: 9.4 | K23: low-speed
A24: 850 | B24: 1 | C24: 852 | D24: 850 | E24: 850 | F24: 848 | G24: 100 | H24: 0.98 | I24: 19935 | J24: 9.8 | K24: low-speed
A25: 900 | B25: 1 | C25: 902 | D25: 900 | E25: 900 | F25: 898 | G25: 100 | H25: 0.98 | I25: 23217 | J25: 10.1 | K25: low-speed
A26: 950 | B26: 1 | C26: 952 | D26: 950 | E26: 950 | F26: 948 | G26: 100 | H26: 0.98 | I26: 26818 | J26: 10.5 | K26: low-speed
A27: 1000 | B27: 1 | C27: 1002 | D27: 1000 | E27: 1000 | F27: 998 | G27: 100 | H27: 0.98 | I27: 30749 | J27: 10.9 | K27: low-speed

Sheet In_LDc
A1: pipe_nominal_dia | B1: dia1 | C1: dia3 | D1: length_center_face1 | E1: length_center_face3
A2: =B2&"*"&C2 -> 75*75 | B2: 75 | C2: 75 | D2: =B2*1 -> 75 | E2: =C2*1 -> 75
A3: 100*100 | B3: 100 | C3: 100 | D3: =B3*1 -> 100 | E3: =C3*1 -> 100
A4: 125*125 | B4: 125 | C4: 125 | D4: 125 | E4: 125
A5: 150*150 | B5: 150 | C5: 150 | D5: 150 | E5: 150
A6: 175*175 | B6: 175 | C6: 175 | D6: 175 | E6: 175
A7: 200*200 | B7: 200 | C7: 200 | D7: 200 | E7: 200
A8: 225*225 | B8: 225 | C8: 225 | D8: 225 | E8: 225
A9: 250*250 | B9: 250 | C9: 250 | D9: 250 | E9: 250
A10: 275*275 | B10: 275 | C10: 275 | D10: 275 | E10: 275
A11: 300*300 | B11: 300 | C11: 300 | D11: 300 | E11: 300
A12: 325*325 | B12: 325 | C12: 325 | D12: 325 | E12: 325
A13: 350*350 | B13: 350 | C13: 350 | D13: 350 | E13: 350
A14: 375*375 | B14: 375 | C14: 375 | D14: 375 | E14: 375
A15: 400*400 | B15: 400 | C15: 400 | D15: 400 | E15: 400
A16: 450*450 | B16: 450 | C16: 450 | D16: 450 | E16: 450
A17: 500*500 | B17: 500 | C17: 500 | D17: 500 | E17: 500
A18: 550*550 | B18: 550 | C18: 550 | D18: 550 | E18: 550
A19: 600*600 | B19: 600 | C19: 600 | D19: 600 | E19: 600
A20: 650*650 | B20: 650 | C20: 650 | D20: 650 | E20: 650
A21: 700*700 | B21: 700 | C21: 700 | D21: 700 | E21: 700
A22: 750*750 | B22: 750 | C22: 750 | D22: 750 | E22: 750
A23: 800*800 | B23: 800 | C23: 800 | D23: 800 | E23: 800
A24: 850*850 | B24: 850 | C24: 850 | D24: 850 | E24: 850
A25: 900*900 | B25: 900 | C25: 900 | D25: 900 | E25: 900
A26: 950*950 | B26: 950 | C26: 950 | D26: 950 | E26: 950
A27: 1000*1000 | B27: 1000 | C27: 1000 | D27: 1000 | E27: 1000

Sheet In_TDc
A1: pipe_nominal_dia | B1: dia1 | C1: dia2 | D1: dia3 | E1: length_center_face1 | F1: length_center_face2 | G1: length_center_face3
A2: =B2&"*"&C2&"*"&D2 -> 75*75*75 | B2: 75 | C2: =B2 -> 75 | D2: 75 | E2: =D2/2+30 -> 67.5 | F2: =E2 -> 67.5 | G2: =B2/2+30 -> 67.5
A3: 100*100*100 | B3: 100 | C3: 100 | D3: 100 | E3: =D3/2+30 -> 80 | F3: =E3 -> 80 | G3: =B3/2+30 -> 80
A4: 100*100*75 | B4: 100 | C4: 100 | D4: 75 | E4: 67.5 | F4: 67.5 | G4: =B4/2+30 -> 80
A5: 125*125*125 | B5: 125 | C5: 125 | D5: 125 | E5: 92.5 | F5: 92.5 | G5: 92.5
A6: 125*125*100 | B6: 125 | C6: 125 | D6: 100 | E6: 80 | F6: 80 | G6: 92.5
A7: 150*150*150 | B7: 150 | C7: 150 | D7: 150 | E7: 105 | F7: 105 | G7: 105
A8: 150*150*125 | B8: 150 | C8: 150 | D8: 125 | E8: 92.5 | F8: 92.5 | G8: 105
A9: 150*150*100 | B9: 150 | C9: 150 | D9: 100 | E9: 80 | F9: 80 | G9: 105
A10: 175*175*175 | B10: 175 | C10: 175 | D10: 175 | E10: 117.5 | F10: 117.5 | G10: 117.5
A11: 175*175*150 | B11: 175 | C11: 175 | D11: 150 | E11: 105 | F11: 105 | G11: 117.5
A12: 175*175*125 | B12: 175 | C12: 175 | D12: 125 | E12: 92.5 | F12: 92.5 | G12: 117.5
A13: 175*175*100 | B13: 175 | C13: 175 | D13: 100 | E13: 80 | F13: 80 | G13: 117.5
A14: 200*200*200 | B14: 200 | C14: 200 | D14: 200 | E14: 130 | F14: 130 | G14: 130
A15: 200*200*175 | B15: 200 | C15: 200 | D15: 175 | E15: 117.5 | F15: 117.5 | G15: 130
A16: 200*200*150 | B16: 200 | C16: 200 | D16: 150 | E16: 105 | F16: 105 | G16: 130
A17: 200*200*125 | B17: 200 | C17: 200 | D17: 125 | E17: 92.5 | F17: 92.5 | G17: 130
A18: 200*200*100 | B18: 200 | C18: 200 | D18: 100 | E18: 80 | F18: 80 | G18: 130
A19: 225*225*225 | B19: 225 | C19: 225 | D19: 225 | E19: 142.5 | F19: 142.5 | G19: 142.5
A20: 225*225*200 | B20: 225 | C20: 225 | D20: 200 | E20: 130 | F20: 130 | G20: 142.5
A21: 225*225*175 | B21: 225 | C21: 225 | D21: 175 | E21: 117.5 | F21: 117.5 | G21: 142.5
A22: 225*225*150 | B22: 225 | C22: 225 | D22: 150 | E22: 105 | F22: 105 | G22: 142.5
A23: 225*225*125 | B23: 225 | C23: 225 | D23: 125 | E23: 92.5 | F23: 92.5 | G23: 142.5
A24: 225*225*100 | B24: 225 | C24: 225 | D24: 100 | E24: 80 | F24: 80 | G24: 142.5
A25: 250*250*250 | B25: 250 | C25: 250 | D25: 250 | E25: 155 | F25: 155 | G25: 155
A26: 250*250*225 | B26: 250 | C26: 250 | D26: 225 | E26: 142.5 | F26: 142.5 | G26: 155
A27: 250*250*200 | B27: 250 | C27: 250 | D27: 200 | E27: 130 | F27: 130 | G27: 155
A28: 250*250*175 | B28: 250 | C28: 250 | D28: 175 | E28: 117.5 | F28: 117.5 | G28: 155
A29: 250*250*150 | B29: 250 | C29: 250 | D29: 150 | E29: 105 | F29: 105 | G29: 155
A30: 250*250*125 | B30: 250 | C30: 250 | D30: 125 | E30: 92.5 | F30: 92.5 | G30: 155
A31: 250*250*100 | B31: 250 | C31: 250 | D31: 100 | E31: 80 | F31: 80 | G31: 155
A32: 275*275*275 | B32: 275 | C32: 275 | D32: 275 | E32: 167.5 | F32: 167.5 | G32: 167.5
A33: 275*275*250 | B33: 275 | C33: 275 | D33: 250 | E33: 155 | F33: 155 | G33: 167.5
A34: =B34&"*"&C34&"*"&D34 -> 275*275*225 | B34: 275 | C34: =B34 -> 275 | D34: 225 | E34: 142.5 | F34: 142.5 | G34: 167.5
A35: 275*275*200 | B35: 275 | C35: 275 | D35: 200 | E35: 130 | F35: 130 | G35: 167.5
A36: 275*275*175 | B36: 275 | C36: 275 | D36: 175 | E36: 117.5 | F36: 117.5 | G36: 167.5
A37: 275*275*150 | B37: 275 | C37: 275 | D37: 150 | E37: 105 | F37: 105 | G37: 167.5
A38: 275*275*125 | B38: 275 | C38: 275 | D38: 125 | E38: 92.5 | F38: 92.5 | G38: 167.5
A39: 275*275*100 | B39: 275 | C39: 275 | D39: 100 | E39: 80 | F39: 80 | G39: 167.5
A40: 300*300*300 | B40: 300 | C40: 300 | D40: 300 | E40: 180 | F40: 180 | G40: 180
A41: 300*300*275 | B41: 300 | C41: 300 | D41: 275 | E41: 167.5 | F41: 167.5 | G41: 180
A42: 300*300*250 | B42: 300 | C42: 300 | D42: 250 | E42: 155 | F42: 155 | G42: 180
A43: 300*300*225 | B43: 300 | C43: 300 | D43: 225 | E43: 142.5 | F43: 142.5 | G43: 180
A44: 300*300*200 | B44: 300 | C44: 300 | D44: 200 | E44: 130 | F44: 130 | G44: 180
A45: 300*300*175 | B45: 300 | C45: 300 | D45: 175 | E45: 117.5 | F45: 117.5 | G45: 180
A46: 300*300*150 | B46: 300 | C46: 300 | D46: 150 | E46: 105 | F46: 105 | G46: 180
A47: 300*300*125 | B47: 300 | C47: 300 | D47: 125 | E47: 92.5 | F47: 92.5 | G47: 180
A48: 300*300*100 | B48: 300 | C48: 300 | D48: 100 | E48: 80 | F48: 80 | G48: 180
A49: 325*325*325 | B49: 325 | C49: 325 | D49: 325 | E49: 192.5 | F49: 192.5 | G49: 192.5
A50: 325*325*300 | B50: 325 | C50: 325 | D50: 300 | E50: 180 | F50: 180 | G50: 192.5
A51: 325*325*275 | B51: 325 | C51: 325 | D51: 275 | E51: 167.5 | F51: 167.5 | G51: 192.5
A52: 325*325*250 | B52: 325 | C52: 325 | D52: 250 | E52: 155 | F52: 155 | G52: 192.5
A53: 325*325*225 | B53: 325 | C53: 325 | D53: 225 | E53: 142.5 | F53: 142.5 | G53: 192.5
A54: 325*325*200 | B54: 325 | C54: 325 | D54: 200 | E54: 130 | F54: 130 | G54: 192.5
A55: 350*350*350 | B55: 350 | C55: 350 | D55: 350 | E55: 205 | F55: 205 | G55: 205
A56: 350*350*325 | B56: 350 | C56: 350 | D56: 325 | E56: 192.5 | F56: 192.5 | G56: 205
A57: 350*350*300 | B57: 350 | C57: 350 | D57: 300 | E57: 180 | F57: 180 | G57: 205
A58: 350*350*275 | B58: 350 | C58: 350 | D58: 275 | E58: 167.5 | F58: 167.5 | G58: 205
A59: 350*350*250 | B59: 350 | C59: 350 | D59: 250 | E59: 155 | F59: 155 | G59: 205
A60: 350*350*225 | B60: 350 | C60: 350 | D60: 225 | E60: 142.5 | F60: 142.5 | G60: 205
A61: 350*350*200 | B61: 350 | C61: 350 | D61: 200 | E61: 130 | F61: 130 | G61: 205
A62: 375*375*375 | B62: 375 | C62: 375 | D62: 375 | E62: 217.5 | F62: 217.5 | G62: 217.5
A63: 375*375*350 | B63: 375 | C63: 375 | D63: 350 | E63: 205 | F63: 205 | G63: 217.5
A64: 375*375*325 | B64: 375 | C64: 375 | D64: 325 | E64: 192.5 | F64: 192.5 | G64: 217.5
A65: 375*375*300 | B65: 375 | C65: 375 | D65: 300 | E65: 180 | F65: 180 | G65: 217.5
A66: =B66&"*"&C66&"*"&D66 -> 375*375*275 | B66: 375 | C66: =B66 -> 375 | D66: 275 | E66: 167.5 | F66: 167.5 | G66: 217.5
A67: 375*375*250 | B67: 375 | C67: 375 | D67: 250 | E67: =D67/2+30 -> 155 | F67: =E67 -> 155 | G67: 217.5
A68: 400*400*400 | B68: 400 | C68: 400 | D68: 400 | E68: 230 | F68: 230 | G68: =B68/2+30 -> 230
A69: 400*400*375 | B69: 400 | C69: 400 | D69: 375 | E69: 217.5 | F69: 217.5 | G69: 230
A70: 400*400*350 | B70: 400 | C70: 400 | D70: 350 | E70: 205 | F70: 205 | G70: 230
A71: 400*400*325 | B71: 400 | C71: 400 | D71: 325 | E71: 192.5 | F71: 192.5 | G71: 230
A72: 400*400*300 | B72: 400 | C72: 400 | D72: 300 | E72: 180 | F72: 180 | G72: 230
A73: 400*400*275 | B73: 400 | C73: 400 | D73: 275 | E73: 167.5 | F73: 167.5 | G73: 230
A74: 400*400*250 | B74: 400 | C74: 400 | D74: 250 | E74: 155 | F74: 155 | G74: 230
A75: 450*450*450 | B75: 450 | C75: 450 | D75: 450 | E75: 255 | F75: 255 | G75: 255
A76: 450*450*400 | B76: 450 | C76: 450 | D76: 400 | E76: 230 | F76: 230 | G76: 255
A77: 450*450*350 | B77: 450 | C77: 450 | D77: 350 | E77: 205 | F77: 205 | G77: 255
A78: 450*450*300 | B78: 450 | C78: 450 | D78: 300 | E78: 180 | F78: 180 | G78: 255
A79: 500*500*500 | B79: 500 | C79: 500 | D79: 500 | E79: 280 | F79: 280 | G79: 280
A80: 500*500*450 | B80: 500 | C80: 500 | D80: 450 | E80: 255 | F80: 255 | G80: 280
A81: 500*500*400 | B81: 500 | C81: 500 | D81: 400 | E81: 230 | F81: 230 | G81: 280
A82: 500*500*350 | B82: 500 | C82: 500 | D82: 350 | E82: 205 | F82: 205 | G82: 280
A83: 500*500*300 | B83: 500 | C83: 500 | D83: 300 | E83: 180 | F83: 180 | G83: 280
A84: 550*550*550 | B84: 550 | C84: 550 | D84: 550 | E84: 305 | F84: 305 | G84: 305
A85: 550*550*500 | B85: 550 | C85: 550 | D85: 500 | E85: 280 | F85: 280 | G85: 305
A86: 550*550*450 | B86: 550 | C86: 550 | D86: 450 | E86: 255 | F86: 255 | G86: 305
A87: 550*550*400 | B87: 550 | C87: 550 | D87: 400 | E87: 230 | F87: 230 | G87: 305
A88: 550*550*350 | B88: 550 | C88: 550 | D88: 350 | E88: 205 | F88: 205 | G88: 305
A89: 600*600*600 | B89: 600 | C89: 600 | D89: 600 | E89: 330 | F89: 330 | G89: 330
A90: 600*600*550 | B90: 600 | C90: 600 | D90: 550 | E90: 305 | F90: 305 | G90: 330
A91: 600*600*500 | B91: 600 | C91: 600 | D91: 500 | E91: 280 | F91: 280 | G91: 330
A92: 600*600*450 | B92: 600 | C92: 600 | D92: 450 | E92: 255 | F92: 255 | G92: 330
A93: 600*600*400 | B93: 600 | C93: 600 | D93: 400 | E93: 230 | F93: 230 | G93: 330
A94: 650*650*650 | B94: 650 | C94: 650 | D94: 650 | E94: 355 | F94: 355 | G94: 355
A95: 650*650*600 | B95: 650 | C95: 650 | D95: 600 | E95: 330 | F95: 330 | G95: 355
A96: 650*650*550 | B96: 650 | C96: 650 | D96: 550 | E96: 305 | F96: 305 | G96: 355
A97: 650*650*500 | B97: 650 | C97: 650 | D97: 500 | E97: 280 | F97: 280 | G97: 355
A98: =B98&"*"&C98&"*"&D98 -> 650*650*450 | B98: 650 | C98: =B98 -> 650 | D98: 450 | E98: 255 | F98: 255 | G98: 355
A99: 700*700*700 | B99: 700 | C99: 700 | D99: 700 | E99: 380 | F99: 380 | G99: 380
A100: 700*700*650 | B100: 700 | C100: 700 | D100: 650 | E100: 355 | F100: 355 | G100: 380
A101: 700*700*600 | B101: 700 | C101: 700 | D101: 600 | E101: 330 | F101: 330 | G101: 380
A102: 700*700*550 | B102: 700 | C102: 700 | D102: 550 | E102: 305 | F102: 305 | G102: 380
A103: 700*700*500 | B103: 700 | C103: 700 | D103: 500 | E103: 280 | F103: 280 | G103: 380
A104: 750*750*750 | B104: 750 | C104: 750 | D104: 750 | E104: 405 | F104: 405 | G104: 405
A105: 750*750*700 | B105: 750 | C105: 750 | D105: 700 | E105: 380 | F105: 380 | G105: 405
A106: 750*750*650 | B106: 750 | C106: 750 | D106: 650 | E106: 355 | F106: 355 | G106: 405
A107: 750*750*600 | B107: 750 | C107: 750 | D107: 600 | E107: 330 | F107: 330 | G107: 405
A108: 750*750*550 | B108: 750 | C108: 750 | D108: 550 | E108: 305 | F108: 305 | G108: 405
A109: 800*800*800 | B109: 800 | C109: 800 | D109: 800 | E109: 430 | F109: 430 | G109: 430
A110: 800*800*750 | B110: 800 | C110: 800 | D110: 750 | E110: 405 | F110: 405 | G110: 430
A111: 800*800*700 | B111: 800 | C111: 800 | D111: 700 | E111: 380 | F111: 380 | G111: 430
A112: 800*800*650 | B112: 800 | C112: 800 | D112: 650 | E112: 355 | F112: 355 | G112: 430
A113: 800*800*600 | B113: 800 | C113: 800 | D113: 600 | E113: 330 | F113: 330 | G113: 430
A114: 850*850*850 | B114: 850 | C114: 850 | D114: 850 | E114: 455 | F114: 455 | G114: 455
A115: 850*850*800 | B115: 850 | C115: 850 | D115: 800 | E115: 430 | F115: 430 | G115: 455
A116: 850*850*750 | B116: 850 | C116: 850 | D116: 750 | E116: 405 | F116: 405 | G116: 455
A117: 850*850*700 | B117: 850 | C117: 850 | D117: 700 | E117: 380 | F117: 380 | G117: 455
A118: 850*850*650 | B118: 850 | C118: 850 | D118: 650 | E118: 355 | F118: 355 | G118: 455
A119: 900*900*900 | B119: 900 | C119: 900 | D119: 900 | E119: 480 | F119: 480 | G119: 480
A120: 900*900*850 | B120: 900 | C120: 900 | D120: 850 | E120: 455 | F120: 455 | G120: 480
A121: 900*900*800 | B121: 900 | C121: 900 | D121: 800 | E121: 430 | F121: 430 | G121: 480
A122: 900*900*750 | B122: 900 | C122: 900 | D122: 750 | E122: 405 | F122: 405 | G122: 480
A123: 900*900*700 | B123: 900 | C123: 900 | D123: 700 | E123: 380 | F123: 380 | G123: 480
A124: 950*950*950 | B124: 950 | C124: 950 | D124: 950 | E124: 505 | F124: 505 | G124: 505
A125: 950*950*900 | B125: 950 | C125: 950 | D125: 900 | E125: 480 | F125: 480 | G125: 505
A126: 950*950*850 | B126: 950 | C126: 950 | D126: 850 | E126: 455 | F126: 455 | G126: 505
A127: 950*950*800 | B127: 950 | C127: 950 | D127: 800 | E127: 430 | F127: 430 | G127: 505
A128: 950*950*750 | B128: 950 | C128: 950 | D128: 750 | E128: 405 | F128: 405 | G128: 505
A129: 1000*1000*1000 | B129: 1000 | C129: 1000 | D129: 1000 | E129: 530 | F129: 530 | G129: 530
A130: =B130&"*"&C130&"*"&D130 -> 1000*1000*950 | B130: 1000 | C130: =B130 -> 1000 | D130: 950 | E130: 505 | F130: 505 | G130: 530
A131: =B131&"*"&C131&"*"&D131 -> 1000*1000*900 | B131: 1000 | C131: =B131 -> 1000 | D131: 900 | E131: =D131/2+30 -> 480 | F131: =E131 -> 480 | G131: 530
A132: =B132&"*"&C132&"*"&D132 -> 1000*1000*850 | B132: 1000 | C132: =B132 -> 1000 | D132: 850 | E132: =D132/2+30 -> 455 | F132: =E132 -> 455 | G132: =B132/2+30 -> 530
A133: =B133&"*"&C133&"*"&D133 -> 1000*1000*800 | B133: 1000 | C133: =B133 -> 1000 | D133: 800 | E133: =D133/2+30 -> 430 | F133: =E133 -> 430 | G133: =B133/2+30 -> 530

Sheet In_WDc
A1: pipe_nominal_dia | B1: dia1 | C1: dia3 | D1: dia4 | E1: length_center_face1 | F1: length_center_face3 | G1: length_center_face4
A2: =B2&"*"&C2&"*"&D2 -> 75*75*75 | B2: 75 | C2: 75 | D2: =C2 -> 75 | E2: =C2/2+30 -> 67.5 | F2: =B2/2+30 -> 67.5 | G2: =F2 -> 67.5
A3: 100*100*100 | B3: 100 | C3: 100 | D3: 100 | E3: =C3/2+30 -> 80 | F3: =B3/2+30 -> 80 | G3: =F3 -> 80
A4: 125*125*125 | B4: 125 | C4: 125 | D4: 125 | E4: 92.5 | F4: 92.5 | G4: 92.5
A5: 150*150*150 | B5: 150 | C5: 150 | D5: 150 | E5: 105 | F5: 105 | G5: 105
A6: 175*175*175 | B6: 175 | C6: 175 | D6: 175 | E6: 117.5 | F6: 117.5 | G6: 117.5
A7: 200*200*200 | B7: 200 | C7: 200 | D7: 200 | E7: 130 | F7: 130 | G7: 130
A8: 225*225*225 | B8: 225 | C8: 225 | D8: 225 | E8: 142.5 | F8: 142.5 | G8: 142.5
A9: 250*250*250 | B9: 250 | C9: 250 | D9: 250 | E9: 155 | F9: 155 | G9: 155
A10: 275*275*275 | B10: 275 | C10: 275 | D10: 275 | E10: 167.5 | F10: 167.5 | G10: 167.5
A11: 300*300*300 | B11: 300 | C11: 300 | D11: 300 | E11: 180 | F11: 180 | G11: 180
A12: 325*325*325 | B12: 325 | C12: 325 | D12: 325 | E12: 192.5 | F12: 192.5 | G12: 192.5
A13: 350*350*350 | B13: 350 | C13: 350 | D13: 350 | E13: 205 | F13: 205 | G13: 205
A14: 375*375*375 | B14: 375 | C14: 375 | D14: 375 | E14: 217.5 | F14: 217.5 | G14: 217.5
A15: =B15&"*"&C15&"*"&D15 -> 400*400*400 | B15: 400 | C15: 400 | D15: =C15 -> 400 | E15: 230 | F15: 230 | G15: 230
A16: 450*450*450 | B16: 450 | C16: 450 | D16: 450 | E16: 255 | F16: 255 | G16: 255
A17: 500*500*500 | B17: 500 | C17: 500 | D17: 500 | E17: 280 | F17: 280 | G17: 280
A18: 550*550*550 | B18: 550 | C18: 550 | D18: 550 | E18: 305 | F18: 305 | G18: 305
A19: 600*600*600 | B19: 600 | C19: 600 | D19: 600 | E19: 330 | F19: 330 | G19: 330
A20: 650*650*650 | B20: 650 | C20: 650 | D20: 650 | E20: 355 | F20: 355 | G20: 355
A21: 700*700*700 | B21: 700 | C21: 700 | D21: 700 | E21: 380 | F21: 380 | G21: 380
A22: 750*750*750 | B22: 750 | C22: 750 | D22: 750 | E22: 405 | F22: 405 | G22: 405
A23: 800*800*800 | B23: 800 | C23: 800 | D23: 800 | E23: 430 | F23: 430 | G23: 430
A24: 850*850*850 | B24: 850 | C24: 850 | D24: 850 | E24: 455 | F24: 455 | G24: 455
A25: 900*900*900 | B25: 900 | C25: 900 | D25: 900 | E25: 480 | F25: 480 | G25: 480
A26: 950*950*950 | B26: 950 | C26: 950 | D26: 950 | E26: 505 | F26: 505 | G26: 505
A27: 1000*1000*1000 | B27: 1000 | C27: 1000 | D27: 1000 | E27: 530 | F27: 530 | G27: 530

Sheet In_XDc
A1: pipe_nominal_dia | B1: dia1 | C1: dia2 | D1: dia3 | E1: dia4 | F1: length_plug4 | G1: length_center_face1 | H1: length_center_face2 | I1: length_center_face3 | J1: length_center_face4
A2: =B2&"*"&C2&"*"&D2 -> 75*75*75 | B2: 75 | C2: =B2 -> 75 | D2: 75 | E2: =D2 -> 75 | F2: =IF(E2<150,60,IF(E2<325,80,100)) -> 60 | G2: =(D2+60)/2 -> 67.5 | H2: =G2 -> 67.5 | I2: =B2/2+30 -> 67.5 | J2: =I2 -> 67.5
A3: 100*100*100 | B3: 100 | C3: 100 | D3: 100 | E3: 100 | F3: =IF(E3<150,60,IF(E3<325,80,100)) -> 60 | G3: 80 | H3: =G3 -> 80 | I3: 80 | J3: 80
A4: 100*100*75 | B4: 100 | C4: 100 | D4: 75 | E4: 75 | F4: 60 | G4: 67.5 | H4: 67.5 | I4: 80 | J4: 80
A5: 125*125*125 | B5: 125 | C5: 125 | D5: 125 | E5: 125 | F5: 60 | G5: 92.5 | H5: 92.5 | I5: 92.5 | J5: 92.5
A6: 125*125*100 | B6: 125 | C6: 125 | D6: 100 | E6: 100 | F6: 60 | G6: 80 | H6: 80 | I6: 92.5 | J6: 92.5
A7: 150*150*150 | B7: 150 | C7: 150 | D7: 150 | E7: 150 | F7: 80 | G7: 105 | H7: 105 | I7: 105 | J7: 105
A8: 150*150*125 | B8: 150 | C8: 150 | D8: 125 | E8: 125 | F8: 60 | G8: 92.5 | H8: 92.5 | I8: 105 | J8: 105
A9: 150*150*100 | B9: 150 | C9: 150 | D9: 100 | E9: 100 | F9: 60 | G9: 80 | H9: 80 | I9: 105 | J9: 105
A10: 175*175*175 | B10: 175 | C10: 175 | D10: 175 | E10: 175 | F10: 80 | G10: 117.5 | H10: 117.5 | I10: 117.5 | J10: 117.5
A11: 175*175*150 | B11: 175 | C11: 175 | D11: 150 | E11: 150 | F11: 80 | G11: 105 | H11: 105 | I11: 117.5 | J11: 117.5
A12: 175*175*125 | B12: 175 | C12: 175 | D12: 125 | E12: 125 | F12: 60 | G12: 92.5 | H12: 92.5 | I12: 117.5 | J12: 117.5
A13: 175*175*100 | B13: 175 | C13: 175 | D13: 100 | E13: 100 | F13: 60 | G13: 80 | H13: 80 | I13: 117.5 | J13: 117.5
A14: 200*200*200 | B14: 200 | C14: 200 | D14: 200 | E14: 200 | F14: 80 | G14: 130 | H14: 130 | I14: 130 | J14: 130
A15: 200*200*175 | B15: 200 | C15: 200 | D15: 175 | E15: 175 | F15: 80 | G15: 117.5 | H15: 117.5 | I15: 130 | J15: 130
A16: 200*200*150 | B16: 200 | C16: 200 | D16: 150 | E16: 150 | F16: 80 | G16: 105 | H16: 105 | I16: 130 | J16: 130
A17: 200*200*125 | B17: 200 | C17: 200 | D17: 125 | E17: 125 | F17: 60 | G17: 92.5 | H17: 92.5 | I17: 130 | J17: 130
A18: 200*200*100 | B18: 200 | C18: 200 | D18: 100 | E18: 100 | F18: 60 | G18: 80 | H18: 80 | I18: 130 | J18: 130
A19: 225*225*225 | B19: 225 | C19: 225 | D19: 225 | E19: 225 | F19: 80 | G19: 142.5 | H19: 142.5 | I19: 142.5 | J19: 142.5
A20: 225*225*200 | B20: 225 | C20: 225 | D20: 200 | E20: 200 | F20: 80 | G20: 130 | H20: 130 | I20: 142.5 | J20: 142.5
A21: 225*225*175 | B21: 225 | C21: 225 | D21: 175 | E21: 175 | F21: 80 | G21: 117.5 | H21: 117.5 | I21: 142.5 | J21: 142.5
A22: 225*225*150 | B22: 225 | C22: 225 | D22: 150 | E22: 150 | F22: 80 | G22: 105 | H22: 105 | I22: 142.5 | J22: 142.5
A23: 225*225*125 | B23: 225 | C23: 225 | D23: 125 | E23: 125 | F23: 60 | G23: 92.5 | H23: 92.5 | I23: 142.5 | J23: 142.5
A24: 225*225*100 | B24: 225 | C24: 225 | D24: 100 | E24: 100 | F24: 60 | G24: 80 | H24: 80 | I24: 142.5 | J24: 142.5
A25: 250*250*250 | B25: 250 | C25: 250 | D25: 250 | E25: 250 | F25: 80 | G25: 155 | H25: 155 | I25: 155 | J25: 155
A26: 250*250*225 | B26: 250 | C26: 250 | D26: 225 | E26: 225 | F26: 80 | G26: 142.5 | H26: 142.5 | I26: 155 | J26: 155
A27: 250*250*200 | B27: 250 | C27: 250 | D27: 200 | E27: 200 | F27: 80 | G27: 130 | H27: 130 | I27: 155 | J27: 155
A28: 250*250*175 | B28: 250 | C28: 250 | D28: 175 | E28: 175 | F28: 80 | G28: 117.5 | H28: 117.5 | I28: 155 | J28: 155
A29: 250*250*150 | B29: 250 | C29: 250 | D29: 150 | E29: 150 | F29: 80 | G29: 105 | H29: 105 | I29: 155 | J29: 155
A30: 250*250*125 | B30: 250 | C30: 250 | D30: 125 | E30: 125 | F30: 60 | G30: 92.5 | H30: 92.5 | I30: 155 | J30: 155
A31: 250*250*100 | B31: 250 | C31: 250 | D31: 100 | E31: 100 | F31: 60 | G31: 80 | H31: 80 | I31: 155 | J31: 155
A32: 275*275*275 | B32: 275 | C32: 275 | D32: 275 | E32: 275 | F32: 80 | G32: 167.5 | H32: 167.5 | I32: 167.5 | J32: 167.5
A33: 275*275*250 | B33: 275 | C33: 275 | D33: 250 | E33: 250 | F33: 80 | G33: 155 | H33: 155 | I33: 167.5 | J33: 167.5
A34: =B34&"*"&C34&"*"&D34 -> 275*275*225 | B34: 275 | C34: =B34 -> 275 | D34: 225 | E34: =D34 -> 225 | F34: 80 | G34: =(D34+60)/2 -> 142.5 | H34: 142.5 | I34: =B34/2+30 -> 167.5 | J34: 167.5
A35: 275*275*200 | B35: 275 | C35: 275 | D35: 200 | E35: 200 | F35: 80 | G35: 130 | H35: 130 | I35: 167.5 | J35: 167.5
A36: 275*275*175 | B36: 275 | C36: 275 | D36: 175 | E36: 175 | F36: 80 | G36: 117.5 | H36: 117.5 | I36: 167.5 | J36: 167.5
A37: 275*275*150 | B37: 275 | C37: 275 | D37: 150 | E37: 150 | F37: 80 | G37: 105 | H37: 105 | I37: 167.5 | J37: 167.5
A38: 275*275*125 | B38: 275 | C38: 275 | D38: 125 | E38: 125 | F38: 60 | G38: 92.5 | H38: 92.5 | I38: 167.5 | J38: 167.5
A39: 275*275*100 | B39: 275 | C39: 275 | D39: 100 | E39: 100 | F39: 60 | G39: 80 | H39: 80 | I39: 167.5 | J39: 167.5
A40: 300*300*300 | B40: 300 | C40: 300 | D40: 300 | E40: 300 | F40: 80 | G40: 180 | H40: 180 | I40: 180 | J40: 180
A41: 300*300*275 | B41: 300 | C41: 300 | D41: 275 | E41: 275 | F41: 80 | G41: 167.5 | H41: 167.5 | I41: 180 | J41: 180
A42: 300*300*250 | B42: 300 | C42: 300 | D42: 250 | E42: 250 | F42: 80 | G42: 155 | H42: 155 | I42: 180 | J42: 180
A43: 300*300*225 | B43: 300 | C43: 300 | D43: 225 | E43: 225 | F43: 80 | G43: 142.5 | H43: 142.5 | I43: 180 | J43: 180
A44: 300*300*200 | B44: 300 | C44: 300 | D44: 200 | E44: 200 | F44: 80 | G44: 130 | H44: 130 | I44: 180 | J44: 180
A45: 300*300*175 | B45: 300 | C45: 300 | D45: 175 | E45: 175 | F45: 80 | G45: 117.5 | H45: 117.5 | I45: 180 | J45: 180
A46: 300*300*150 | B46: 300 | C46: 300 | D46: 150 | E46: 150 | F46: 80 | G46: 105 | H46: 105 | I46: 180 | J46: 180
A47: 300*300*125 | B47: 300 | C47: 300 | D47: 125 | E47: 125 | F47: 60 | G47: 92.5 | H47: 92.5 | I47: 180 | J47: 180
A48: 300*300*100 | B48: 300 | C48: 300 | D48: 100 | E48: 100 | F48: 60 | G48: 80 | H48: 80 | I48: 180 | J48: 180
A49: 325*325*325 | B49: 325 | C49: 325 | D49: 325 | E49: 325 | F49: 100 | G49: 192.5 | H49: 192.5 | I49: 192.5 | J49: 192.5
A50: 325*325*300 | B50: 325 | C50: 325 | D50: 300 | E50: 300 | F50: 80 | G50: 180 | H50: 180 | I50: 192.5 | J50: 192.5
A51: 325*325*275 | B51: 325 | C51: 325 | D51: 275 | E51: 275 | F51: 80 | G51: 167.5 | H51: 167.5 | I51: 192.5 | J51: 192.5
A52: 325*325*250 | B52: 325 | C52: 325 | D52: 250 | E52: 250 | F52: 80 | G52: 155 | H52: 155 | I52: 192.5 | J52: 192.5
A53: 325*325*225 | B53: 325 | C53: 325 | D53: 225 | E53: 225 | F53: 80 | G53: 142.5 | H53: 142.5 | I53: 192.5 | J53: 192.5
A54: 325*325*200 | B54: 325 | C54: 325 | D54: 200 | E54: 200 | F54: 80 | G54: 130 | H54: 130 | I54: 192.5 | J54: 192.5
A55: 350*350*350 | B55: 350 | C55: 350 | D55: 350 | E55: 350 | F55: 100 | G55: 205 | H55: 205 | I55: 205 | J55: 205
A56: 350*350*325 | B56: 350 | C56: 350 | D56: 325 | E56: 325 | F56: 100 | G56: 192.5 | H56: 192.5 | I56: 205 | J56: 205
A57: 350*350*300 | B57: 350 | C57: 350 | D57: 300 | E57: 300 | F57: 80 | G57: 180 | H57: 180 | I57: 205 | J57: 205
A58: 350*350*275 | B58: 350 | C58: 350 | D58: 275 | E58: 275 | F58: 80 | G58: 167.5 | H58: 167.5 | I58: 205 | J58: 205
A59: 350*350*250 | B59: 350 | C59: 350 | D59: 250 | E59: 250 | F59: 80 | G59: 155 | H59: 155 | I59: 205 | J59: 205
A60: 350*350*225 | B60: 350 | C60: 350 | D60: 225 | E60: 225 | F60: 80 | G60: 142.5 | H60: 142.5 | I60: 205 | J60: 205
A61: 350*350*200 | B61: 350 | C61: 350 | D61: 200 | E61: 200 | F61: 80 | G61: 130 | H61: 130 | I61: 205 | J61: 205
A62: 375*375*375 | B62: 375 | C62: 375 | D62: 375 | E62: 375 | F62: 100 | G62: 217.5 | H62: 217.5 | I62: 217.5 | J62: 217.5
A63: 375*375*350 | B63: 375 | C63: 375 | D63: 350 | E63: 350 | F63: 100 | G63: 205 | H63: 205 | I63: 217.5 | J63: 217.5
A64: 375*375*325 | B64: 375 | C64: 375 | D64: 325 | E64: 325 | F64: 100 | G64: 192.5 | H64: 192.5 | I64: 217.5 | J64: 217.5
A65: 375*375*300 | B65: 375 | C65: 375 | D65: 300 | E65: 300 | F65: 80 | G65: 180 | H65: 180 | I65: 217.5 | J65: 217.5
A66: =B66&"*"&C66&"*"&D66 -> 375*375*275 | B66: 375 | C66: =B66 -> 375 | D66: 275 | E66: =D66 -> 275 | F66: 80 | G66: =(D66+60)/2 -> 167.5 | H66: 167.5 | I66: =B66/2+30 -> 217.5 | J66: 217.5
A67: 375*375*250 | B67: 375 | C67: 375 | D67: 250 | E67: 250 | F67: =IF(E67<150,60,IF(E67<325,80,100)) -> 80 | G67: 155 | H67: =G67 -> 155 | I67: 217.5 | J67: 217.5
A68: 400*400*400 | B68: 400 | C68: 400 | D68: 400 | E68: 400 | F68: 100 | G68: 230 | H68: 230 | I68: 230 | J68: 230
A69: 400*400*375 | B69: 400 | C69: 400 | D69: 375 | E69: 375 | F69: 100 | G69: 217.5 | H69: 217.5 | I69: 230 | J69: 230
A70: 400*400*350 | B70: 400 | C70: 400 | D70: 350 | E70: 350 | F70: 100 | G70: 205 | H70: 205 | I70: 230 | J70: 230
A71: 400*400*325 | B71: 400 | C71: 400 | D71: 325 | E71: 325 | F71: 100 | G71: 192.5 | H71: 192.5 | I71: 230 | J71: 230
A72: 400*400*300 | B72: 400 | C72: 400 | D72: 300 | E72: 300 | F72: 80 | G72: 180 | H72: 180 | I72: 230 | J72: 230
A73: 400*400*275 | B73: 400 | C73: 400 | D73: 275 | E73: 275 | F73: 80 | G73: 167.5 | H73: 167.5 | I73: 230 | J73: 230
A74: 400*400*250 | B74: 400 | C74: 400 | D74: 250 | E74: 250 | F74: 80 | G74: 155 | H74: 155 | I74: 230 | J74: 230
A75: 450*450*450 | B75: 450 | C75: 450 | D75: 450 | E75: 450 | F75: 100 | G75: 255 | H75: 255 | I75: 255 | J75: 255
A76: 450*450*400 | B76: 450 | C76: 450 | D76: 400 | E76: 400 | F76: 100 | G76: 230 | H76: 230 | I76: 255 | J76: 255
A77: 450*450*350 | B77: 450 | C77: 450 | D77: 350 | E77: 350 | F77: 100 | G77: 205 | H77: 205 | I77: 255 | J77: 255
A78: 450*450*300 | B78: 450 | C78: 450 | D78: 300 | E78: 300 | F78: 80 | G78: 180 | H78: 180 | I78: 255 | J78: 255
A79: 500*500*500 | B79: 500 | C79: 500 | D79: 500 | E79: 500 | F79: 100 | G79: 280 | H79: 280 | I79: 280 | J79: 280
A80: 500*500*450 | B80: 500 | C80: 500 | D80: 450 | E80: 450 | F80: 100 | G80: 255 | H80: 255 | I80: 280 | J80: 280
A81: 500*500*400 | B81: 500 | C81: 500 | D81: 400 | E81: 400 | F81: 100 | G81: 230 | H81: 230 | I81: 280 | J81: 280
A82: 500*500*350 | B82: 500 | C82: 500 | D82: 350 | E82: 350 | F82: 100 | G82: 205 | H82: 205 | I82: 280 | J82: 280
A83: 500*500*300 | B83: 500 | C83: 500 | D83: 300 | E83: 300 | F83: 80 | G83: 180 | H83: 180 | I83: 280 | J83: 280
A84: 550*550*550 | B84: 550 | C84: 550 | D84: 550 | E84: 550 | F84: 100 | G84: 305 | H84: 305 | I84: 305 | J84: 305
A85: 550*550*500 | B85: 550 | C85: 550 | D85: 500 | E85: 500 | F85: 100 | G85: 280 | H85: 280 | I85: 305 | J85: 305
A86: 550*550*450 | B86: 550 | C86: 550 | D86: 450 | E86: 450 | F86: 100 | G86: 255 | H86: 255 | I86: 305 | J86: 305
A87: 550*550*400 | B87: 550 | C87: 550 | D87: 400 | E87: 400 | F87: 100 | G87: 230 | H87: 230 | I87: 305 | J87: 305
A88: 550*550*350 | B88: 550 | C88: 550 | D88: 350 | E88: 350 | F88: 100 | G88: 205 | H88: 205 | I88: 305 | J88: 305
A89: 600*600*600 | B89: 600 | C89: 600 | D89: 600 | E89: 600 | F89: 100 | G89: 330 | H89: 330 | I89: 330 | J89: 330
A90: 600*600*550 | B90: 600 | C90: 600 | D90: 550 | E90: 550 | F90: 100 | G90: 305 | H90: 305 | I90: 330 | J90: 330
A91: 600*600*500 | B91: 600 | C91: 600 | D91: 500 | E91: 500 | F91: 100 | G91: 280 | H91: 280 | I91: 330 | J91: 330
A92: 600*600*450 | B92: 600 | C92: 600 | D92: 450 | E92: 450 | F92: 100 | G92: 255 | H92: 255 | I92: 330 | J92: 330
A93: 600*600*400 | B93: 600 | C93: 600 | D93: 400 | E93: 400 | F93: 100 | G93: 230 | H93: 230 | I93: 330 | J93: 330
A94: 650*650*650 | B94: 650 | C94: 650 | D94: 650 | E94: 650 | F94: 100 | G94: 355 | H94: 355 | I94: 355 | J94: 355
A95: 650*650*600 | B95: 650 | C95: 650 | D95: 600 | E95: 600 | F95: 100 | G95: 330 | H95: 330 | I95: 355 | J95: 355
A96: 650*650*550 | B96: 650 | C96: 650 | D96: 550 | E96: 550 | F96: 100 | G96: 305 | H96: 305 | I96: 355 | J96: 355
A97: 650*650*500 | B97: 650 | C97: 650 | D97: 500 | E97: 500 | F97: 100 | G97: 280 | H97: 280 | I97: 355 | J97: 355
A98: =B98&"*"&C98&"*"&D98 -> 650*650*450 | B98: 650 | C98: =B98 -> 650 | D98: 450 | E98: =D98 -> 450 | F98: 100 | G98: =(D98+60)/2 -> 255 | H98: 255 | I98: =B98/2+30 -> 355 | J98: 355
A99: 700*700*700 | B99: 700 | C99: 700 | D99: 700 | E99: 700 | F99: 100 | G99: 380 | H99: 380 | I99: 380 | J99: 380
A100: 700*700*650 | B100: 700 | C100: 700 | D100: 650 | E100: 650 | F100: 100 | G100: 355 | H100: 355 | I100: 380 | J100: 380
A101: 700*700*600 | B101: 700 | C101: 700 | D101: 600 | E101: 600 | F101: 100 | G101: 330 | H101: 330 | I101: 380 | J101: 380
A102: 700*700*550 | B102: 700 | C102: 700 | D102: 550 | E102: 550 | F102: 100 | G102: 305 | H102: 305 | I102: 380 | J102: 380
A103: 700*700*500 | B103: 700 | C103: 700 | D103: 500 | E103: 500 | F103: 100 | G103: 280 | H103: 280 | I103: 380 | J103: 380
A104: 750*750*750 | B104: 750 | C104: 750 | D104: 750 | E104: 750 | F104: 100 | G104: 405 | H104: 405 | I104: 405 | J104: 405
A105: 750*750*700 | B105: 750 | C105: 750 | D105: 700 | E105: 700 | F105: 100 | G105: 380 | H105: 380 | I105: 405 | J105: 405
A106: 750*750*650 | B106: 750 | C106: 750 | D106: 650 | E106: 650 | F106: 100 | G106: 355 | H106: 355 | I106: 405 | J106: 405
A107: 750*750*600 | B107: 750 | C107: 750 | D107: 600 | E107: 600 | F107: 100 | G107: 330 | H107: 330 | I107: 405 | J107: 405
A108: 750*750*550 | B108: 750 | C108: 750 | D108: 550 | E108: 550 | F108: 100 | G108: 305 | H108: 305 | I108: 405 | J108: 405
A109: 800*800*800 | B109: 800 | C109: 800 | D109: 800 | E109: 800 | F109: 100 | G109: 430 | H109: 430 | I109: 430 | J109: 430
A110: 800*800*750 | B110: 800 | C110: 800 | D110: 750 | E110: 750 | F110: 100 | G110: 405 | H110: 405 | I110: 430 | J110: 430
A111: 800*800*700 | B111: 800 | C111: 800 | D111: 700 | E111: 700 | F111: 100 | G111: 380 | H111: 380 | I111: 430 | J111: 430
A112: 800*800*650 | B112: 800 | C112: 800 | D112: 650 | E112: 650 | F112: 100 | G112: 355 | H112: 355 | I112: 430 | J112: 430
A113: 800*800*600 | B113: 800 | C113: 800 | D113: 600 | E113: 600 | F113: 100 | G113: 330 | H113: 330 | I113: 430 | J113: 430
A114: 850*850*850 | B114: 850 | C114: 850 | D114: 850 | E114: 850 | F114: 100 | G114: 455 | H114: 455 | I114: 455 | J114: 455
A115: 850*850*800 | B115: 850 | C115: 850 | D115: 800 | E115: 800 | F115: 100 | G115: 430 | H115: 430 | I115: 455 | J115: 455
A116: 850*850*750 | B116: 850 | C116: 850 | D116: 750 | E116: 750 | F116: 100 | G116: 405 | H116: 405 | I116: 455 | J116: 455
A117: 850*850*700 | B117: 850 | C117: 850 | D117: 700 | E117: 700 | F117: 100 | G117: 380 | H117: 380 | I117: 455 | J117: 455
A118: 850*850*650 | B118: 850 | C118: 850 | D118: 650 | E118: 650 | F118: 100 | G118: 355 | H118: 355 | I118: 455 | J118: 455
A119: 900*900*900 | B119: 900 | C119: 900 | D119: 900 | E119: 900 | F119: 100 | G119: 480 | H119: 480 | I119: 480 | J119: 480
A120: 900*900*850 | B120: 900 | C120: 900 | D120: 850 | E120: 850 | F120: 100 | G120: 455 | H120: 455 | I120: 480 | J120: 480
A121: 900*900*800 | B121: 900 | C121: 900 | D121: 800 | E121: 800 | F121: 100 | G121: 430 | H121: 430 | I121: 480 | J121: 480
A122: 900*900*750 | B122: 900 | C122: 900 | D122: 750 | E122: 750 | F122: 100 | G122: 405 | H122: 405 | I122: 480 | J122: 480
A123: 900*900*700 | B123: 900 | C123: 900 | D123: 700 | E123: 700 | F123: 100 | G123: 380 | H123: 380 | I123: 480 | J123: 480
A124: 950*950*950 | B124: 950 | C124: 950 | D124: 950 | E124: 950 | F124: 100 | G124: 505 | H124: 505 | I124: 505 | J124: 505
A125: 950*950*900 | B125: 950 | C125: 950 | D125: 900 | E125: 900 | F125: 100 | G125: 480 | H125: 480 | I125: 505 | J125: 505
A126: 950*950*850 | B126: 950 | C126: 950 | D126: 850 | E126: 850 | F126: 100 | G126: 455 | H126: 455 | I126: 505 | J126: 505
A127: 950*950*800 | B127: 950 | C127: 950 | D127: 800 | E127: 800 | F127: 100 | G127: 430 | H127: 430 | I127: 505 | J127: 505
A128: 950*950*750 | B128: 950 | C128: 950 | D128: 750 | E128: 750 | F128: 100 | G128: 405 | H128: 405 | I128: 505 | J128: 505
A129: 1000*1000*1000 | B129: 1000 | C129: 1000 | D129: 1000 | E129: 1000 | F129: 100 | G129: 530 | H129: 530 | I129: 530 | J129: 530
A130: =B130&"*"&C130&"*"&D130 -> 1000*1000*950 | B130: 1000 | C130: =B130 -> 1000 | D130: 950 | E130: =D130 -> 950 | F130: 100 | G130: 505 | H130: 505 | I130: 530 | J130: 530
A131: =B131&"*"&C131&"*"&D131 -> 1000*1000*900 | B131: 1000 | C131: =B131 -> 1000 | D131: 900 | E131: =D131 -> 900 | F131: =IF(E131<150,60,IF(E131<325,80,100)) -> 100 | G131: 480 | H131: =G131 -> 480 | I131: 530 | J131: 530
A132: =B132&"*"&C132&"*"&D132 -> 1000*1000*850 | B132: 1000 | C132: =B132 -> 1000 | D132: 850 | E132: =D132 -> 850 | F132: =IF(E132<150,60,IF(E132<325,80,100)) -> 100 | G132: 455 | H132: 455 | I132: 530 | J132: 530
A133: =B133&"*"&C133&"*"&D133 -> 1000*1000*800 | B133: 1000 | C133: =B133 -> 1000 | D133: 800 | E133: =D133 -> 800 | F133: =IF(E133<150,60,IF(E133<325,80,100)) -> 100 | G133: 430 | H133: 430 | I133: 530 | J133: 530

Sheet In_SDc
A1: pipe_nominal_dia | B1: dia1 | C1: dia2 | D1: length_center_face1 | E1: length_center_face2 | F1: length_face1_face2
A2: =B2&"*"&C2 -> 75*75 | B2: 75 | C2: 75 | D2: =F2/2 -> 10 | E2: =D2 -> 10 | F2: =IF(B2=C2,20,(B2-C2)*1.4+35) -> 20
A3: 100*100 | B3: 100 | C3: 100 | D3: 10 | E3: 10 | F3: 20
A4: 100*75 | B4: 100 | C4: 75 | D4: 35 | E4: 35 | F4: 70
A5: 125*125 | B5: 125 | C5: 125 | D5: 10 | E5: 10 | F5: 20
A6: 125*100 | B6: 125 | C6: 100 | D6: 35 | E6: 35 | F6: 70
A7: 150*150 | B7: 150 | C7: 150 | D7: 10 | E7: 10 | F7: 20
A8: 150*150 | B8: 150 | C8: 150 | D8: 10 | E8: 10 | F8: 20
A9: 150*125 | B9: 150 | C9: 125 | D9: 35 | E9: 35 | F9: 70
A10: 150*100 | B10: 150 | C10: 100 | D10: 52.5 | E10: 52.5 | F10: 105
A11: 175*175 | B11: 175 | C11: 175 | D11: 10 | E11: 10 | F11: 20
A12: 175*150 | B12: 175 | C12: 150 | D12: 35 | E12: 35 | F12: 70
A13: 175*125 | B13: 175 | C13: 125 | D13: 52.5 | E13: 52.5 | F13: 105
A14: 175*100 | B14: 175 | C14: 100 | D14: 70 | E14: 70 | F14: 140
A15: 200*200 | B15: 200 | C15: 200 | D15: 10 | E15: 10 | F15: 20
A16: 200*175 | B16: 200 | C16: 175 | D16: 35 | E16: 35 | F16: 70
A17: 200*150 | B17: 200 | C17: 150 | D17: 52.5 | E17: 52.5 | F17: 105
A18: 200*125 | B18: 200 | C18: 125 | D18: 70 | E18: 70 | F18: 140
A19: 200*100 | B19: 200 | C19: 100 | D19: 87.5 | E19: 87.5 | F19: 175
A20: 225*225 | B20: 225 | C20: 225 | D20: 10 | E20: 10 | F20: 20
A21: 225*200 | B21: 225 | C21: 200 | D21: 35 | E21: 35 | F21: 70
A22: 225*175 | B22: 225 | C22: 175 | D22: 52.5 | E22: 52.5 | F22: 105
A23: 225*150 | B23: 225 | C23: 150 | D23: 70 | E23: 70 | F23: 140
A24: 225*125 | B24: 225 | C24: 125 | D24: 87.5 | E24: 87.5 | F24: 175
A25: 250*250 | B25: 250 | C25: 250 | D25: 10 | E25: 10 | F25: 20
A26: 250*225 | B26: 250 | C26: 225 | D26: 35 | E26: 35 | F26: 70
A27: 250*200 | B27: 250 | C27: 200 | D27: 52.5 | E27: 52.5 | F27: 105
A28: 250*175 | B28: 250 | C28: 175 | D28: 70 | E28: 70 | F28: 140
A29: 250*150 | B29: 250 | C29: 150 | D29: 87.5 | E29: 87.5 | F29: 175
A30: 250*125 | B30: 250 | C30: 125 | D30: 105 | E30: 105 | F30: 210
A31: 275*275 | B31: 275 | C31: 275 | D31: 10 | E31: 10 | F31: 20
A32: 275*250 | B32: 275 | C32: 250 | D32: 35 | E32: 35 | F32: 70
A33: 275*225 | B33: 275 | C33: 225 | D33: 52.5 | E33: 52.5 | F33: 105
A34: =B34&"*"&C34 -> 275*200 | B34: 275 | C34: 200 | D34: =F34/2 -> 70 | E34: =D34 -> 70 | F34: =IF(B34=C34,20,(B34-C34)*1.4+35) -> 140
A35: 275*175 | B35: 275 | C35: 175 | D35: 87.5 | E35: 87.5 | F35: 175
A36: 275*150 | B36: 275 | C36: 150 | D36: 105 | E36: 105 | F36: 210
A37: 275*125 | B37: 275 | C37: 125 | D37: 122.5 | E37: 122.5 | F37: 245
A38: 300*300 | B38: 300 | C38: 300 | D38: 10 | E38: 10 | F38: 20
A39: 300*275 | B39: 300 | C39: 275 | D39: 35 | E39: 35 | F39: 70
A40: 300*250 | B40: 300 | C40: 250 | D40: 52.5 | E40: 52.5 | F40: 105
A41: 300*225 | B41: 300 | C41: 225 | D41: 70 | E41: 70 | F41: 140
A42: 300*200 | B42: 300 | C42: 200 | D42: 87.5 | E42: 87.5 | F42: 175
A43: 300*175 | B43: 300 | C43: 175 | D43: 105 | E43: 105 | F43: 210
A44: 300*150 | B44: 300 | C44: 150 | D44: 122.5 | E44: 122.5 | F44: 245
A45: 325*325 | B45: 325 | C45: 325 | D45: 10 | E45: 10 | F45: 20
A46: 325*300 | B46: 325 | C46: 300 | D46: 35 | E46: 35 | F46: 70
A47: 325*275 | B47: 325 | C47: 275 | D47: 52.5 | E47: 52.5 | F47: 105
A48: 325*250 | B48: 325 | C48: 250 | D48: 70 | E48: 70 | F48: 140
A49: 325*225 | B49: 325 | C49: 225 | D49: 87.5 | E49: 87.5 | F49: 175
A50: 325*200 | B50: 325 | C50: 200 | D50: 105 | E50: 105 | F50: 210
A51: 325*175 | B51: 325 | C51: 175 | D51: 122.5 | E51: 122.5 | F51: 245
A52: 325*150 | B52: 325 | C52: 150 | D52: 140 | E52: 140 | F52: 280
A53: 350*350 | B53: 350 | C53: 350 | D53: 10 | E53: 10 | F53: 20
A54: 350*325 | B54: 350 | C54: 325 | D54: 35 | E54: 35 | F54: 70
A55: 350*300 | B55: 350 | C55: 300 | D55: 52.5 | E55: 52.5 | F55: 105
A56: 350*275 | B56: 350 | C56: 275 | D56: 70 | E56: 70 | F56: 140
A57: 350*250 | B57: 350 | C57: 250 | D57: 87.5 | E57: 87.5 | F57: 175
A58: 350*225 | B58: 350 | C58: 225 | D58: 105 | E58: 105 | F58: 210
A59: 350*200 | B59: 350 | C59: 200 | D59: 122.5 | E59: 122.5 | F59: 245
A60: 350*175 | B60: 350 | C60: 175 | D60: 140 | E60: 140 | F60: 280
A61: 375*375 | B61: 375 | C61: 375 | D61: 10 | E61: 10 | F61: 20
A62: 375*350 | B62: 375 | C62: 350 | D62: 35 | E62: 35 | F62: 70
A63: 375*325 | B63: 375 | C63: 325 | D63: 52.5 | E63: 52.5 | F63: 105
A64: 375*300 | B64: 375 | C64: 300 | D64: 70 | E64: 70 | F64: 140
A65: 375*275 | B65: 375 | C65: 275 | D65: 87.5 | E65: 87.5 | F65: 175
A66: =B66&"*"&C66 -> 375*250 | B66: 375 | C66: 250 | D66: =F66/2 -> 105 | E66: =D66 -> 105 | F66: =IF(B66=C66,20,(B66-C66)*1.4+35) -> 210
A67: 375*225 | B67: 375 | C67: 225 | D67: 122.5 | E67: 122.5 | F67: 245
A68: 375*200 | B68: 375 | C68: 200 | D68: 140 | E68: 140 | F68: 280
A69: 400*400 | B69: 400 | C69: 400 | D69: 10 | E69: 10 | F69: 20
A70: 400*375 | B70: 400 | C70: 375 | D70: 35 | E70: 35 | F70: 70
A71: 400*350 | B71: 400 | C71: 350 | D71: 52.5 | E71: 52.5 | F71: 105
A72: 400*325 | B72: 400 | C72: 325 | D72: 70 | E72: 70 | F72: 140
A73: 400*300 | B73: 400 | C73: 300 | D73: 87.5 | E73: 87.5 | F73: 175
A74: 400*275 | B74: 400 | C74: 275 | D74: 105 | E74: 105 | F74: 210
A75: 400*250 | B75: 400 | C75: 250 | D75: 122.5 | E75: 122.5 | F75: 245
A76: 400*225 | B76: 400 | C76: 225 | D76: 140 | E76: 140 | F76: 280
A77: 400*200 | B77: 400 | C77: 200 | D77: 157.5 | E77: 157.5 | F77: 315
A78: 450*450 | B78: 450 | C78: 450 | D78: 10 | E78: 10 | F78: 20
A79: 450*400 | B79: 450 | C79: 400 | D79: 52.5 | E79: 52.5 | F79: 105
A80: 450*375 | B80: 450 | C80: 375 | D80: 70 | E80: 70 | F80: 140
A81: 450*350 | B81: 450 | C81: 350 | D81: 87.5 | E81: 87.5 | F81: 175
A82: 450*325 | B82: 450 | C82: 325 | D82: 105 | E82: 105 | F82: 210
A83: 450*300 | B83: 450 | C83: 300 | D83: 122.5 | E83: 122.5 | F83: 245
A84: 450*275 | B84: 450 | C84: 275 | D84: 140 | E84: 140 | F84: 280
A85: 450*250 | B85: 450 | C85: 250 | D85: 157.5 | E85: 157.5 | F85: 315
A86: 450*225 | B86: 450 | C86: 225 | D86: 175 | E86: 175 | F86: 350
A87: 500*500 | B87: 500 | C87: 500 | D87: 10 | E87: 10 | F87: 20
A88: 500*450 | B88: 500 | C88: 450 | D88: 52.5 | E88: 52.5 | F88: 105
A89: 500*400 | B89: 500 | C89: 400 | D89: 87.5 | E89: 87.5 | F89: 175
A90: 500*375 | B90: 500 | C90: 375 | D90: 105 | E90: 105 | F90: 210
A91: 500*350 | B91: 500 | C91: 350 | D91: 122.5 | E91: 122.5 | F91: 245
A92: 500*325 | B92: 500 | C92: 325 | D92: 140 | E92: 140 | F92: 280
A93: 500*300 | B93: 500 | C93: 300 | D93: 157.5 | E93: 157.5 | F93: 315
A94: 500*275 | B94: 500 | C94: 275 | D94: 175 | E94: 175 | F94: 350
A95: 500*250 | B95: 500 | C95: 250 | D95: 192.5 | E95: 192.5 | F95: 385
A96: 550*550 | B96: 550 | C96: 550 | D96: 10 | E96: 10 | F96: 20
A97: 550*500 | B97: 550 | C97: 500 | D97: 52.5 | E97: 52.5 | F97: 105
A98: =B98&"*"&C98 -> 550*450 | B98: 550 | C98: 450 | D98: =F98/2 -> 87.5 | E98: =D98 -> 87.5 | F98: =IF(B98=C98,20,(B98-C98)*1.4+35) -> 175
A99: 550*400 | B99: 550 | C99: 400 | D99: 122.5 | E99: 122.5 | F99: 245
A100: 550*375 | B100: 550 | C100: 375 | D100: 140 | E100: 140 | F100: 280
A101: 550*350 | B101: 550 | C101: 350 | D101: 157.5 | E101: 157.5 | F101: 315
A102: 550*325 | B102: 550 | C102: 325 | D102: 175 | E102: 175 | F102: 350
A103: 550*300 | B103: 550 | C103: 300 | D103: 192.5 | E103: 192.5 | F103: 385
A104: 550*275 | B104: 550 | C104: 275 | D104: 210 | E104: 210 | F104: 420
A105: 600*600 | B105: 600 | C105: 600 | D105: 10 | E105: 10 | F105: 20
A106: 600*550 | B106: 600 | C106: 550 | D106: 52.5 | E106: 52.5 | F106: 105
A107: 600*500 | B107: 600 | C107: 500 | D107: 87.5 | E107: 87.5 | F107: 175
A108: 600*450 | B108: 600 | C108: 450 | D108: 122.5 | E108: 122.5 | F108: 245
A109: 600*400 | B109: 600 | C109: 400 | D109: 157.5 | E109: 157.5 | F109: 315
A110: 600*375 | B110: 600 | C110: 375 | D110: 175 | E110: 175 | F110: 350
A111: 600*350 | B111: 600 | C111: 350 | D111: 192.5 | E111: 192.5 | F111: 385
A112: 600*325 | B112: 600 | C112: 325 | D112: 210 | E112: 210 | F112: 420
A113: 600*300 | B113: 600 | C113: 300 | D113: 227.5 | E113: 227.5 | F113: 455
A114: 650*650 | B114: 650 | C114: 650 | D114: 10 | E114: 10 | F114: 20
A115: 650*600 | B115: 650 | C115: 600 | D115: 52.5 | E115: 52.5 | F115: 105
A116: 650*550 | B116: 650 | C116: 550 | D116: 87.5 | E116: 87.5 | F116: 175
A117: 650*500 | B117: 650 | C117: 500 | D117: 122.5 | E117: 122.5 | F117: 245
A118: 650*450 | B118: 650 | C118: 450 | D118: 157.5 | E118: 157.5 | F118: 315
A119: 650*400 | B119: 650 | C119: 400 | D119: 192.5 | E119: 192.5 | F119: 385
A120: 650*375 | B120: 650 | C120: 375 | D120: 210 | E120: 210 | F120: 420
A121: 650*350 | B121: 650 | C121: 350 | D121: 227.5 | E121: 227.5 | F121: 455
A122: 650*325 | B122: 650 | C122: 325 | D122: 245 | E122: 245 | F122: 490
A123: 700*700 | B123: 700 | C123: 700 | D123: 10 | E123: 10 | F123: 20
A124: 700*650 | B124: 700 | C124: 650 | D124: 52.5 | E124: 52.5 | F124: 105
A125: 700*600 | B125: 700 | C125: 600 | D125: 87.5 | E125: 87.5 | F125: 175
A126: 700*550 | B126: 700 | C126: 550 | D126: 122.5 | E126: 122.5 | F126: 245
A127: 700*500 | B127: 700 | C127: 500 | D127: 157.5 | E127: 157.5 | F127: 315
A128: 700*450 | B128: 700 | C128: 450 | D128: 192.5 | E128: 192.5 | F128: 385
A129: 700*400 | B129: 700 | C129: 400 | D129: 227.5 | E129: 227.5 | F129: 455
A130: =B130&"*"&C130 -> 700*375 | B130: 700 | C130: 375 | D130: =F130/2 -> 245 | E130: =D130 -> 245 | F130: =IF(B130=C130,20,(B130-C130)*1.4+35) -> 490
A131: 700*350 | B131: 700 | C131: 350 | D131: 262.5 | E131: 262.5 | F131: 525
A132: 750*750 | B132: 750 | C132: 750 | D132: 10 | E132: 10 | F132: 20
A133: 750*700 | B133: 750 | C133: 700 | D133: 52.5 | E133: 52.5 | F133: 105
A134: 750*650 | B134: 750 | C134: 650 | D134: 87.5 | E134: 87.5 | F134: 175
A135: 750*600 | B135: 750 | C135: 600 | D135: 122.5 | E135: 122.5 | F135: 245
A136: 750*550 | B136: 750 | C136: 550 | D136: 157.5 | E136: 157.5 | F136: 315
A137: 750*500 | B137: 750 | C137: 500 | D137: 192.5 | E137: 192.5 | F137: 385
A138: 750*450 | B138: 750 | C138: 450 | D138: 227.5 | E138: 227.5 | F138: 455
A139: 750*400 | B139: 750 | C139: 400 | D139: 262.5 | E139: 262.5 | F139: 525
A140: 750*375 | B140: 750 | C140: 375 | D140: 280 | E140: 280 | F140: 560
A141: 750*350 | B141: 750 | C141: 350 | D141: 297.5 | E141: 297.5 | F141: 595
A142: 800*800 | B142: 800 | C142: 800 | D142: 10 | E142: 10 | F142: 20
A143: 800*750 | B143: 800 | C143: 750 | D143: 52.5 | E143: 52.5 | F143: 105
A144: 800*700 | B144: 800 | C144: 700 | D144: 87.5 | E144: 87.5 | F144: 175
A145: 800*650 | B145: 800 | C145: 650 | D145: 122.5 | E145: 122.5 | F145: 245
A146: 800*600 | B146: 800 | C146: 600 | D146: 157.5 | E146: 157.5 | F146: 315
A147: 800*550 | B147: 800 | C147: 550 | D147: 192.5 | E147: 192.5 | F147: 385
A148: 800*500 | B148: 800 | C148: 500 | D148: 227.5 | E148: 227.5 | F148: 455
A149: 800*450 | B149: 800 | C149: 450 | D149: 262.5 | E149: 262.5 | F149: 525
A150: 800*400 | B150: 800 | C150: 400 | D150: 297.5 | E150: 297.5 | F150: 595
A151: 850*850 | B151: 850 | C151: 850 | D151: 10 | E151: 10 | F151: 20
A152: 850*800 | B152: 850 | C152: 800 | D152: 52.5 | E152: 52.5 | F152: 105
A153: 850*750 | B153: 850 | C153: 750 | D153: 87.5 | E153: 87.5 | F153: 175
A154: 850*700 | B154: 850 | C154: 700 | D154: 122.5 | E154: 122.5 | F154: 245
A155: 850*650 | B155: 850 | C155: 650 | D155: 157.5 | E155: 157.5 | F155: 315
A156: 850*600 | B156: 850 | C156: 600 | D156: 192.5 | E156: 192.5 | F156: 385
A157: 850*550 | B157: 850 | C157: 550 | D157: 227.5 | E157: 227.5 | F157: 455
A158: 850*500 | B158: 850 | C158: 500 | D158: 262.5 | E158: 262.5 | F158: 525
A159: 850*450 | B159: 850 | C159: 450 | D159: 297.5 | E159: 297.5 | F159: 595
A160: 850*400 | B160: 850 | C160: 400 | D160: 332.5 | E160: 332.5 | F160: 665
A161: 900*900 | B161: 900 | C161: 900 | D161: 10 | E161: 10 | F161: 20
A162: =B162&"*"&C162 -> 900*850 | B162: 900 | C162: 850 | D162: =F162/2 -> 52.5 | E162: =D162 -> 52.5 | F162: =IF(B162=C162,20,(B162-C162)*1.4+35) -> 105
A163: 900*800 | B163: 900 | C163: 800 | D163: 87.5 | E163: 87.5 | F163: 175
A164: 900*750 | B164: 900 | C164: 750 | D164: 122.5 | E164: 122.5 | F164: 245
A165: 900*700 | B165: 900 | C165: 700 | D165: 157.5 | E165: 157.5 | F165: 315
A166: 900*650 | B166: 900 | C166: 650 | D166: 192.5 | E166: 192.5 | F166: 385
A167: 900*600 | B167: 900 | C167: 600 | D167: 227.5 | E167: 227.5 | F167: 455
A168: 900*550 | B168: 900 | C168: 550 | D168: 262.5 | E168: 262.5 | F168: 525
A169: 900*500 | B169: 900 | C169: 500 | D169: 297.5 | E169: 297.5 | F169: 595
A170: 950*950 | B170: 950 | C170: 950 | D170: 10 | E170: 10 | F170: 20
A171: 950*900 | B171: 950 | C171: 900 | D171: 52.5 | E171: 52.5 | F171: 105
A172: 950*850 | B172: 950 | C172: 850 | D172: 87.5 | E172: 87.5 | F172: 175
A173: 950*800 | B173: 950 | C173: 800 | D173: 122.5 | E173: 122.5 | F173: 245
A174: 950*750 | B174: 950 | C174: 750 | D174: 157.5 | E174: 157.5 | F174: 315
A175: 950*700 | B175: 950 | C175: 700 | D175: 192.5 | E175: 192.5 | F175: 385
A176: 950*650 | B176: 950 | C176: 650 | D176: 227.5 | E176: 227.5 | F176: 455
A177: 950*600 | B177: 950 | C177: 600 | D177: 262.5 | E177: 262.5 | F177: 525
A178: 950*550 | B178: 950 | C178: 550 | D178: 297.5 | E178: 297.5 | F178: 595
A179: 950*500 | B179: 950 | C179: 500 | D179: 332.5 | E179: 332.5 | F179: 665
A180: 1000*1000 | B180: 1000 | C180: 1000 | D180: 10 | E180: 10 | F180: 20
A181: 1000*950 | B181: 1000 | C181: 950 | D181: 52.5 | E181: 52.5 | F181: 105
A182: 1000*900 | B182: 1000 | C182: 900 | D182: 87.5 | E182: 87.5 | F182: 175
A183: 1000*850 | B183: 1000 | C183: 850 | D183: 122.5 | E183: 122.5 | F183: 245
A184: 1000*800 | B184: 1000 | C184: 800 | D184: 157.5 | E184: 157.5 | F184: 315
A185: 1000*750 | B185: 1000 | C185: 750 | D185: 192.5 | E185: 192.5 | F185: 385
A186: 1000*700 | B186: 1000 | C186: 700 | D186: 227.5 | E186: 227.5 | F186: 455
A187: 1000*650 | B187: 1000 | C187: 650 | D187: 262.5 | E187: 262.5 | F187: 525
A188: 1000*600 | B188: 1000 | C188: 600 | D188: 297.5 | E188: 297.5 | F188: 595

Sheet In_NDc
A1: pipe_nominal_dia | B1: dia1 | C1: length_plug1 | D1: dia2 | E1: length_plug2 | F1: length_center_face1 | G1: length_center_face2 | H1: length_face1_face2
A2: =B2&"*"&D2 -> 75*75 | B2: 75 | C2: =IF(B2<150,60,IF(B2<325,80,100)) -> 60 | D2: 75 | E2: =IF(D2<150,60,IF(D2<325,80,100)) -> 60 | F2: =C2 -> 60 | G2: =F2 -> 60 | H2: =C2+E2 -> 120
A3: =B3&"*"&D3 -> 100*100 | B3: 100 | C3: =IF(B3<150,60,IF(B3<325,80,100)) -> 60 | D3: 100 | E3: =IF(D3<150,60,IF(D3<325,80,100)) -> 60 | F3: =C3 -> 60 | G3: =F3 -> 60 | H3: =C3+E3 -> 120
A4: 125*125 | B4: 125 | C4: 60 | D4: 125 | E4: 60 | F4: 60 | G4: 60 | H4: 120
A5: 150*150 | B5: 150 | C5: 80 | D5: 150 | E5: 80 | F5: 80 | G5: 80 | H5: 160
A6: 175*175 | B6: 175 | C6: 80 | D6: 175 | E6: 80 | F6: 80 | G6: 80 | H6: 160
A7: 200*200 | B7: 200 | C7: 80 | D7: 200 | E7: 80 | F7: 80 | G7: 80 | H7: 160
A8: 225*225 | B8: 225 | C8: 80 | D8: 225 | E8: 80 | F8: 80 | G8: 80 | H8: 160
A9: 250*250 | B9: 250 | C9: 80 | D9: 250 | E9: 80 | F9: 80 | G9: 80 | H9: 160
A10: 275*275 | B10: 275 | C10: 80 | D10: 275 | E10: 80 | F10: 80 | G10: 80 | H10: 160
A11: 300*300 | B11: 300 | C11: 80 | D11: 300 | E11: 80 | F11: 80 | G11: 80 | H11: 160
A12: 325*325 | B12: 325 | C12: 100 | D12: 325 | E12: 100 | F12: 100 | G12: 100 | H12: 200
A13: 350*350 | B13: 350 | C13: 100 | D13: 350 | E13: 100 | F13: 100 | G13: 100 | H13: 200
A14: 375*375 | B14: 375 | C14: 100 | D14: 375 | E14: 100 | F14: 100 | G14: 100 | H14: 200
A15: 400*400 | B15: 400 | C15: 100 | D15: 400 | E15: 100 | F15: 100 | G15: 100 | H15: 200
A16: 450*450 | B16: 450 | C16: 100 | D16: 450 | E16: 100 | F16: 100 | G16: 100 | H16: 200
A17: 500*500 | B17: 500 | C17: 100 | D17: 500 | E17: 100 | F17: 100 | G17: 100 | H17: 200
A18: 550*550 | B18: 550 | C18: 100 | D18: 550 | E18: 100 | F18: 100 | G18: 100 | H18: 200
A19: 600*600 | B19: 600 | C19: 100 | D19: 600 | E19: 100 | F19: 100 | G19: 100 | H19: 200
A20: 650*650 | B20: 650 | C20: 100 | D20: 650 | E20: 100 | F20: 100 | G20: 100 | H20: 200
A21: 700*700 | B21: 700 | C21: 100 | D21: 700 | E21: 100 | F21: 100 | G21: 100 | H21: 200
A22: 750*750 | B22: 750 | C22: 100 | D22: 750 | E22: 100 | F22: 100 | G22: 100 | H22: 200
A23: 800*800 | B23: 800 | C23: 100 | D23: 800 | E23: 100 | F23: 100 | G23: 100 | H23: 200
A24: 850*850 | B24: 850 | C24: 100 | D24: 850 | E24: 100 | F24: 100 | G24: 100 | H24: 200
A25: 900*900 | B25: 900 | C25: 100 | D25: 900 | E25: 100 | F25: 100 | G25: 100 | H25: 200
A26: 950*950 | B26: 950 | C26: 100 | D26: 950 | E26: 100 | F26: 100 | G26: 100 | H26: 200
A27: 1000*1000 | B27: 1000 | C27: 100 | D27: 1000 | E27: 100 | F27: 100 | G27: 100 | H27: 200

Sheet In_PP
A1: pipe_nominal_dia | B1: pipe_thickness | C1: pipe_outer_dia | D1: pipe_inner_dia | E1: fitting_outer_dia | F1: fitting_inner_dia | G1: length_connection | H1: flow_volume
A2: 20 | B2: 2.8 | C2: 27.2 | D2: =C2-B2*2 -> 21.6 | E2: 33 | F2: =C2 -> 27.2 | G2: 9.5 | H2: =ROUND(3.14159*(D2/2/1000)*(D2/2/1000)*1*60*1000,0) -> 22
A3: 25 | B3: 3.2 | C3: 34 | D3: 27.6 | E3: 41 | F3: =C3 -> 34 | G3: 10.4 | H3: 36
A4: 32 | B4: 3.5 | C4: 42.7 | D4: 35.7 | E4: 50 | F4: 42.7 | G4: 12.7 | H4: 60
A5: 40 | B5: 3.5 | C5: 48.6 | D5: 41.6 | E5: 56 | F5: 48.6 | G5: 12.7 | H5: 82
A6: 50 | B6: 3.8 | C6: 60.5 | D6: 52.9 | E6: 69 | F6: 60.5 | G6: 15.9 | H6: 132
A7: 65 | B7: 4.2 | C7: 76.3 | D7: 67.9 | E7: 86 | F7: 76.3 | G7: 17.5 | H7: 217
A8: 80 | B8: 4.2 | C8: 89.1 | D8: 80.7 | E8: 99 | F8: 89.1 | G8: 20.6 | H8: 307
A9: 100 | B9: 4.5 | C9: 114.3 | D9: 105.3 | E9: 127 | F9: 114.3 | G9: 25.4 | H9: 523
A10: 125 | B10: 4.5 | C10: 139.8 | D10: 130.8 | E10: 154 | F10: 139.8 | G10: 28.6 | H10: 806
A11: 150 | B11: 5 | C11: 165.2 | D11: 155.2 | E11: 182 | F11: 165.2 | G11: 28.9 | H11: 1135

Sheet In_LP
A1: pipe_nominal_dia | B1: dia1 | C1: dia3 | D1: length_center_face1 | E1: length_center_face3
A2: =B2&"*"&C2 -> 15*15 | B2: 15 | C2: 15 | D2: 27 | E2: =D2 -> 27
A3: =B3&"*"&C3 -> 20*20 | B3: 20 | C3: 20 | D3: 32 | E3: =D3 -> 32
A4: =B4&"*"&C4 -> 25*25 | B4: 25 | C4: 25 | D4: 38 | E4: =D4 -> 38
A5: 32*32 | B5: 32 | C5: 32 | D5: 46 | E5: 46
A6: 40*40 | B6: 40 | C6: 40 | D6: 48 | E6: 48
A7: 50*50 | B7: 50 | C7: 50 | D7: 57 | E7: 57
A8: 65*65 | B8: 65 | C8: 65 | D8: 69 | E8: 69
A9: 80*80 | B9: 80 | C9: 80 | D9: 78 | E9: 78
A10: 100*100 | B10: 100 | C10: 100 | D10: 97 | E10: 97
A11: 125*125 | B11: 125 | C11: 125 | D11: 113 | E11: 113
A12: 150*150 | B12: 150 | C12: 150 | D12: 132 | E12: 132

Sheet In_TP
A1: pipe_nominal_dia | B1: dia1 | C1: dia2 | D1: dia3 | E1: length_center_face1 | F1: length_center_face2 | G1: length_center_face3
A2: =B2&"*"&C2&"*"&D2 -> 20*20*20 | B2: 20 | C2: 20 | D2: 20 | E2: 32 | F2: =E2 -> 32 | G2: 32
A3: =B3&"*"&C3&"*"&D3 -> 25*25*25 | B3: 25 | C3: 25 | D3: 25 | E3: 38 | F3: =E3 -> 38 | G3: 38
A4: 25*25*20 | B4: 25 | C4: 25 | D4: 20 | E4: 34 | F4: 34 | G4: 35
A5: 32*32*32 | B5: 32 | C5: 32 | D5: 32 | E5: 46 | F5: 46 | G5: 46
A6: 32*32*25 | B6: 32 | C6: 32 | D6: 25 | E6: 40 | F6: 40 | G6: 42
A7: 32*32*20 | B7: 32 | C7: 32 | D7: 20 | E7: 38 | F7: 38 | G7: 40
A8: 40*40*40 | B8: 40 | C8: 40 | D8: 40 | E8: 48 | F8: 48 | G8: 48
A9: 40*40*32 | B9: 40 | C9: 40 | D9: 32 | E9: 45 | F9: 45 | G9: 48
A10: 40*40*25 | B10: 40 | C10: 40 | D10: 25 | E10: 41 | F10: 41 | G10: 45
A11: 40*40*20 | B11: 40 | C11: 40 | D11: 20 | E11: 38 | F11: 38 | G11: 43
A12: 50*50*50 | B12: 50 | C12: 50 | D12: 50 | E12: 57 | F12: 57 | G12: 57
A13: 50*50*40 | B13: 50 | C13: 50 | D13: 40 | E13: 52 | F13: 52 | G13: 55
A14: 50*50*32 | B14: 50 | C14: 50 | D14: 32 | E14: 48 | F14: 48 | G14: 54
A15: 50*50*25 | B15: 50 | C15: 50 | D15: 25 | E15: 44 | F15: 44 | G15: 51
A16: 50*50*20 | B16: 50 | C16: 50 | D16: 20 | E16: 41 | F16: 41 | G16: 49
A17: 65*65*65 | B17: 65 | C17: 65 | D17: 65 | E17: 69 | F17: 69 | G17: 69
A18: 65*65*50 | B18: 65 | C18: 65 | D18: 50 | E18: 60 | F18: 60 | G18: 65
A19: 65*65*40 | B19: 65 | C19: 65 | D19: 40 | E19: 55 | F19: 55 | G19: 62
A20: 65*65*32 | B20: 65 | C20: 65 | D20: 32 | E20: 52 | F20: 52 | G20: 62
A21: 65*65*25 | B21: 65 | C21: 65 | D21: 25 | E21: 48 | F21: 48 | G21: 60
A22: 65*65*20 | B22: 65 | C22: 65 | D22: 20 | E22: 44 | F22: 44 | G22: 58
A23: 80*80*80 | B23: 80 | C23: 80 | D23: 80 | E23: 78 | F23: =E23 -> 78 | G23: 78
A24: 80*80*65 | B24: 80 | C24: 80 | D24: 65 | E24: 72 | F24: 72 | G24: 75
A25: =B25&"*"&C25&"*"&D25 -> 80*80*50 | B25: 80 | C25: 80 | D25: 50 | E25: 62 | F25: 62 | G25: 72
A26: 80*80*40 | B26: 80 | C26: 80 | D26: 40 | E26: 58 | F26: 58 | G26: 72
A27: 80*80*32 | B27: 80 | C27: 80 | D27: 32 | E27: 55 | F27: 55 | G27: 70
A28: 80*80*25 | B28: 80 | C28: 80 | D28: 25 | E28: 50 | F28: 50 | G28: 68
A29: 80*80*20 | B29: 80 | C29: 80 | D29: 20 | E29: 46 | F29: 46 | G29: 66
A30: 100*100*100 | B30: 100 | C30: 100 | D30: 100 | E30: 97 | F30: 97 | G30: 97
A31: 100*100*80 | B31: 100 | C31: 100 | D31: 80 | E31: 83 | F31: 83 | G31: 91
A32: 100*100*65 | B32: 100 | C32: 100 | D32: 65 | E32: 78 | F32: 78 | G32: 90
A33: 100*100*50 | B33: 100 | C33: 100 | D33: 50 | E33: 69 | F33: 69 | G33: 87
A34: 100*100*40 | B34: 100 | C34: 100 | D34: 40 | E34: 63 | F34: 63 | G34: 86
A35: 100*100*25 | B35: 100 | C35: 100 | D35: 25 | E35: 57 | F35: 57 | G35: 83
A36: 100*100*20 | B36: 100 | C36: 100 | D36: 20 | E36: 54 | F36: 54 | G36: 80
A37: 125*125*125 | B37: 125 | C37: 125 | D37: 125 | E37: 113 | F37: 113 | G37: 113
A38: 125*125*100 | B38: 125 | C38: 125 | D38: 100 | E38: 100 | F38: 100 | G38: 111
A39: 125*125*80 | B39: 125 | C39: 125 | D39: 80 | E39: 87 | F39: 87 | G39: 107
A40: 125*125*65 | B40: 125 | C40: 125 | D40: 65 | E40: 81 | F40: 81 | G40: 105
A41: =B41&"*"&C41&"*"&D41 -> 125*125*50 | B41: 125 | C41: 125 | D41: 50 | E41: 72 | F41: 72 | G41: 103
A42: 125*125*40 | B42: 125 | C42: 125 | D42: 40 | E42: 66 | F42: =E42 -> 66 | G42: 100
A43: 150*150*150 | B43: 150 | C43: 150 | D43: 150 | E43: 132 | F43: 132 | G43: 132
A44: 150*150*125 | B44: 150 | C44: 150 | D44: 125 | E44: 116 | F44: 116 | G44: 128
A45: 150*150*100 | B45: 150 | C45: 150 | D45: 100 | E45: 102 | F45: 102 | G45: 125
A46: 150*150*50 | B46: 150 | C46: 150 | D46: 50 | E46: 75 | F46: 75 | G46: 116

Sheet In_WP
A1: pipe_nominal_dia | B1: dia1 | C1: dia3 | D1: dia4 | E1: length_center_face1 | F1: length_center_face3 | G1: length_center_face4
A2: =B2&"*"&C2&"*"&D2 -> 20*20*20 | B2: 20 | C2: 20 | D2: 20 | E2: 32 | F2: 32 | G2: =F2 -> 32
A3: =B3&"*"&C3&"*"&D3 -> 25*25*25 | B3: 25 | C3: 25 | D3: 25 | E3: 38 | F3: 38 | G3: =F3 -> 38
A4: 32*32*32 | B4: 32 | C4: 32 | D4: 32 | E4: 46 | F4: 46 | G4: 46
A5: 40*40*40 | B5: 40 | C5: 40 | D5: 40 | E5: 48 | F5: 48 | G5: 48
A6: 50*50*50 | B6: 50 | C6: 50 | D6: 50 | E6: 57 | F6: 57 | G6: 57
A7: 50*50*40 | B7: 50 | C7: 50 | D7: 40 | E7: 52 | F7: 52 | G7: 52
A8: 50*50*32 | B8: 50 | C8: 50 | D8: 32 | E8: 48 | F8: 48 | G8: 48
A9: 65*65*65 | B9: 65 | C9: 65 | D9: 65 | E9: 69 | F9: 69 | G9: 69
A10: 80*80*80 | B10: 80 | C10: 80 | D10: 80 | E10: 78 | F10: 78 | G10: =F10 -> 78
A11: 100*100*100 | B11: 100 | C11: 100 | D11: 100 | E11: 97 | F11: 97 | G11: 97
A12: 125*125*125 | B12: 125 | C12: 125 | D12: 125 | E12: 113 | F12: 113 | G12: 113
A13: 125*125*100 | B13: 125 | C13: 125 | D13: 100 | E13: 100 | F13: 100 | G13: 100
A14: 125*125*80 | B14: 125 | C14: 125 | D14: 80 | E14: 87 | F14: 87 | G14: 87
A15: 125*125*65 | B15: 125 | C15: 125 | D15: 65 | E15: 81 | F15: 81 | G15: 81
A16: =B16&"*"&C16&"*"&D16 -> 125*125*50 | B16: 125 | C16: 125 | D16: 50 | E16: 72 | F16: 72 | G16: 72
A17: 125*125*40 | B17: 125 | C17: 125 | D17: 40 | E17: 66 | F17: 66 | G17: =F17 -> 66
A18: 150*150*150 | B18: 150 | C18: 150 | D18: 150 | E18: 132 | F18: 132 | G18: 132

Sheet In_XP
A1: pipe_nominal_dia | B1: dia1 | C1: dia2 | D1: dia3 | E1: dia4 | F1: length_center_face1 | G1: length_center_face2 | H1: length_center_face3 | I1: length_center_face4
A2: =B2&"*"&C2&"*"&D2&"*"&E2 -> 20*20*20*20 | B2: 20 | C2: 20 | D2: 20 | E2: 20 | F2: 32 | G2: =F2 -> 32 | H2: 32 | I2: =H2 -> 32
A3: =B3&"*"&C3&"*"&D3&"*"&E3 -> 25*25*25*25 | B3: 25 | C3: 25 | D3: 25 | E3: 25 | F3: 38 | G3: =F3 -> 38 | H3: 38 | I3: =H3 -> 38
A4: 25*25*20*20 | B4: 25 | C4: 25 | D4: 20 | E4: 20 | F4: 34 | G4: 34 | H4: 35 | I4: 35
A5: 32*32*32*32 | B5: 32 | C5: 32 | D5: 32 | E5: 32 | F5: 46 | G5: 46 | H5: 46 | I5: 46
A6: 32*32*25*25 | B6: 32 | C6: 32 | D6: 25 | E6: 25 | F6: 40 | G6: 40 | H6: 42 | I6: 42
A7: 32*32*20*20 | B7: 32 | C7: 32 | D7: 20 | E7: 20 | F7: 38 | G7: 38 | H7: 40 | I7: 40
A8: 40*40*40*40 | B8: 40 | C8: 40 | D8: 40 | E8: 40 | F8: 48 | G8: 48 | H8: 48 | I8: 48
A9: 40*40*32*32 | B9: 40 | C9: 40 | D9: 32 | E9: 32 | F9: 45 | G9: 45 | H9: 48 | I9: 48
A10: 40*40*25*25 | B10: 40 | C10: 40 | D10: 25 | E10: 25 | F10: 41 | G10: 41 | H10: 45 | I10: 45
A11: 40*40*20*20 | B11: 40 | C11: 40 | D11: 20 | E11: 20 | F11: 38 | G11: 38 | H11: 43 | I11: 43
A12: 50*50*50*50 | B12: 50 | C12: 50 | D12: 50 | E12: 50 | F12: 57 | G12: 57 | H12: 57 | I12: 57
A13: 50*50*40*40 | B13: 50 | C13: 50 | D13: 40 | E13: 40 | F13: 52 | G13: 52 | H13: 55 | I13: 55
A14: 50*50*32*32 | B14: 50 | C14: 50 | D14: 32 | E14: 32 | F14: 48 | G14: 48 | H14: 54 | I14: 54
A15: 50*50*25*25 | B15: 50 | C15: 50 | D15: 25 | E15: 25 | F15: 44 | G15: 44 | H15: 51 | I15: 51
A16: 50*50*20*20 | B16: 50 | C16: 50 | D16: 20 | E16: 20 | F16: 41 | G16: 41 | H16: 49 | I16: 49
A17: 65*65*65*65 | B17: 65 | C17: 65 | D17: 65 | E17: 65 | F17: 69 | G17: 69 | H17: 69 | I17: 69
A18: 65*65*50*50 | B18: 65 | C18: 65 | D18: 50 | E18: 50 | F18: 60 | G18: 60 | H18: 65 | I18: 65
A19: 65*65*40*40 | B19: 65 | C19: 65 | D19: 40 | E19: 40 | F19: 55 | G19: 55 | H19: 62 | I19: 62
A20: 65*65*32*32 | B20: 65 | C20: 65 | D20: 32 | E20: 32 | F20: 52 | G20: 52 | H20: 62 | I20: 62
A21: 65*65*25*25 | B21: 65 | C21: 65 | D21: 25 | E21: 25 | F21: 48 | G21: 48 | H21: 60 | I21: 60
A22: 65*65*20*20 | B22: 65 | C22: 65 | D22: 20 | E22: 20 | F22: 44 | G22: 44 | H22: 58 | I22: 58
A23: 80*80*80*80 | B23: 80 | C23: 80 | D23: 80 | E23: 80 | F23: 78 | G23: =F23 -> 78 | H23: 78 | I23: 78
A24: 80*80*65*65 | B24: 80 | C24: 80 | D24: 65 | E24: 65 | F24: 72 | G24: 72 | H24: 75 | I24: 75
A25: 80*80*50*50 | B25: 80 | C25: 80 | D25: 50 | E25: 50 | F25: 62 | G25: 62 | H25: 72 | I25: 72
A26: 80*80*40*40 | B26: 80 | C26: 80 | D26: 40 | E26: 40 | F26: 58 | G26: 58 | H26: 72 | I26: 72
A27: 80*80*32*32 | B27: 80 | C27: 80 | D27: 32 | E27: 32 | F27: 55 | G27: 55 | H27: 70 | I27: 70
A28: 80*80*25*25 | B28: 80 | C28: 80 | D28: 25 | E28: 25 | F28: 50 | G28: 50 | H28: 68 | I28: 68
A29: 80*80*20*20 | B29: 80 | C29: 80 | D29: 20 | E29: 20 | F29: 46 | G29: 46 | H29: 66 | I29: 66
A30: 100*100*100*100 | B30: 100 | C30: 100 | D30: 100 | E30: 100 | F30: 97 | G30: 97 | H30: 97 | I30: 97
A31: =B31&"*"&C31&"*"&D31&"*"&E31 -> 100*100*80*80 | B31: 100 | C31: 100 | D31: 80 | E31: 80 | F31: 83 | G31: 83 | H31: 91 | I31: 91
A32: 100*100*65*65 | B32: 100 | C32: 100 | D32: 65 | E32: 65 | F32: 78 | G32: 78 | H32: 90 | I32: 90
A33: 100*100*50*50 | B33: 100 | C33: 100 | D33: 50 | E33: 50 | F33: 69 | G33: 69 | H33: 87 | I33: 87
A34: 100*100*40*40 | B34: 100 | C34: 100 | D34: 40 | E34: 40 | F34: 63 | G34: 63 | H34: 86 | I34: 86
A35: 100*100*25*25 | B35: 100 | C35: 100 | D35: 25 | E35: 25 | F35: 57 | G35: 57 | H35: 83 | I35: 83
A36: 100*100*20*20 | B36: 100 | C36: 100 | D36: 20 | E36: 20 | F36: 54 | G36: 54 | H36: 80 | I36: 80
A37: 125*125*125*125 | B37: 125 | C37: 125 | D37: 125 | E37: 125 | F37: 113 | G37: 113 | H37: 113 | I37: 113
A38: 125*125*100*100 | B38: 125 | C38: 125 | D38: 100 | E38: 100 | F38: 100 | G38: 100 | H38: 111 | I38: =H38 -> 111
A39: 125*125*80*80 | B39: 125 | C39: 125 | D39: 80 | E39: 80 | F39: 87 | G39: 87 | H39: 107 | I39: 107
A40: 125*125*65*65 | B40: 125 | C40: 125 | D40: 65 | E40: 65 | F40: 81 | G40: 81 | H40: 105 | I40: 105
A41: 125*125*50*50 | B41: 125 | C41: 125 | D41: 50 | E41: 50 | F41: 72 | G41: 72 | H41: 103 | I41: 103
A42: 125*125*40*40 | B42: 125 | C42: 125 | D42: 40 | E42: 40 | F42: 66 | G42: =F42 -> 66 | H42: 100 | I42: 100
A43: 150*150*150*150 | B43: 150 | C43: 150 | D43: 150 | E43: 150 | F43: 132 | G43: 132 | H43: 132 | I43: 132
A44: 150*150*125*125 | B44: 150 | C44: 150 | D44: 125 | E44: 125 | F44: 116 | G44: 116 | H44: 128 | I44: 128
A45: 150*150*100*100 | B45: 150 | C45: 150 | D45: 100 | E45: 100 | F45: 102 | G45: 102 | H45: 125 | I45: 125
A46: 150*150*50*50 | B46: 150 | C46: 150 | D46: 50 | E46: 50 | F46: 75 | G46: 75 | H46: 116 | I46: 116

Sheet In_SP
A1: pipe_nominal_dia | B1: dia1 | C1: dia2 | D1: length_center_face1 | E1: length_center_face2 | F1: length_face1_face2
A2: =B2&"*"&C2 -> 15*15 | B2: 15 | C2: 15 | D2: =F2/2 -> 17.5 | E2: =D2 -> 17.5 | F2: 35
A3: =B3&"*"&C3 -> 20*20 | B3: 20 | C3: 20 | D3: =F3/2 -> 19 | E3: =D3 -> 19 | F3: 38
A4: 20*15 | B4: 20 | C4: 15 | D4: =F4/2 -> 22.5 | E4: =D4 -> 22.5 | F4: 45
A5: 25*25 | B5: 25 | C5: 25 | D5: =F5/2 -> 22.5 | E5: =D5 -> 22.5 | F5: 45
A6: 25*20 | B6: 25 | C6: 20 | D6: 21 | E6: 21 | F6: 42
A7: 32*32 | B7: 32 | C7: 32 | D7: 25 | E7: 25 | F7: 50
A8: 32*25 | B8: 32 | C8: 25 | D8: 24 | E8: 24 | F8: 48
A9: 32*20 | B9: 32 | C9: 20 | D9: 24 | E9: 24 | F9: 48
A10: 40*40 | B10: 40 | C10: 40 | D10: 27.5 | E10: 27.5 | F10: 55
A11: 40*32 | B11: 40 | C11: 32 | D11: 26 | E11: 26 | F11: 52
A12: =B12&"*"&C12 -> 40*25 | B12: 40 | C12: 25 | D12: 26 | E12: 26 | F12: 52
A13: 40*20 | B13: 40 | C13: 20 | D13: 26 | E13: 26 | F13: 52
A14: 50*50 | B14: 50 | C14: 50 | D14: 30 | E14: 30 | F14: 60
A15: 50*40 | B15: 50 | C15: 40 | D15: 29 | E15: 29 | F15: 58
A16: 50*32 | B16: 50 | C16: 32 | D16: 29 | E16: 29 | F16: 58
A17: 50*25 | B17: 50 | C17: 25 | D17: 29 | E17: 29 | F17: 58
A18: 50*20 | B18: 50 | C18: 20 | D18: 29 | E18: 29 | F18: 58
A19: 65*65 | B19: 65 | C19: 65 | D19: 35 | E19: 35 | F19: 70
A20: 65*50 | B20: 65 | C20: 50 | D20: 32.5 | E20: 32.5 | F20: 65
A21: 65*40 | B21: 65 | C21: 40 | D21: 32.5 | E21: 32.5 | F21: 65
A22: =B22&"*"&C22 -> 65*32 | B22: 65 | C22: 32 | D22: 32.5 | E22: 32.5 | F22: 65
A23: 65*25 | B23: 65 | C23: 25 | D23: 32.5 | E23: 32.5 | F23: 65
A24: 80*80 | B24: 80 | C24: 80 | D24: 37.5 | E24: =D24 -> 37.5 | F24: 75
A25: 80*65 | B25: 80 | C25: 65 | D25: =F25/2 -> 36 | E25: 36 | F25: 72
A26: 80*50 | B26: 80 | C26: 50 | D26: 36 | E26: 36 | F26: 72
A27: 80*40 | B27: 80 | C27: 40 | D27: 36 | E27: 36 | F27: 72
A28: 80*32 | B28: 80 | C28: 32 | D28: 36 | E28: 36 | F28: 72
A29: 80*25 | B29: 80 | C29: 25 | D29: 36 | E29: 36 | F29: 72
A30: 100*100 | B30: 100 | C30: 100 | D30: 42.5 | E30: 42.5 | F30: 85
A31: 100*80 | B31: 100 | C31: 80 | D31: 42.5 | E31: 42.5 | F31: 85
A32: =B32&"*"&C32 -> 100*65 | B32: 100 | C32: 65 | D32: 42.5 | E32: 42.5 | F32: 85
A33: 100*50 | B33: 100 | C33: 50 | D33: 42.5 | E33: 42.5 | F33: 85
A34: 125*125 | B34: 125 | C34: 125 | D34: 47.5 | E34: 47.5 | F34: 95
A35: 125*100 | B35: 125 | C35: 100 | D35: 47.5 | E35: 47.5 | F35: 95
A36: 125*80 | B36: 125 | C36: 80 | D36: 47.5 | E36: 47.5 | F36: 95
A37: =B37&"*"&C37 -> 125*65 | B37: 125 | C37: 65 | D37: =F37/2 -> 47.5 | E37: =D37 -> 47.5 | F37: 95
A38: 150*150 | B38: 150 | C38: 150 | D38: 52.5 | E38: 52.5 | F38: 105
A39: 150*125 | B39: 150 | C39: 125 | D39: 52.5 | E39: 52.5 | F39: 105
A40: 150*100 | B40: 150 | C40: 100 | D40: 52.5 | E40: 52.5 | F40: 105
A41: 150*80 | B41: 150 | C41: 80 | D41: 52.5 | E41: 52.5 | F41: 105
A42: 150*50 | B42: 150 | C42: 50 | D42: 52.5 | E42: 52.5 | F42: 105

Sheet In_NP
A1: pipe_nominal_dia | B1: dia1 | C1: dia2 | D1: length_center_face1 | E1: length_center_face2 | F1: length_face1_face2 | G1: length_screw
A2: =B2&"*"&C2 -> 20*20 | B2: 20 | C2: 20 | D2: =F2/2-G2 -> 16 | E2: =D2 -> 16 | F2: 51 | G2: =In_PP!G2 -> 9.5
A3: =B3&"*"&C3 -> 25*25 | B3: 25 | C3: 25 | D3: 18.1 | E3: =D3 -> 18.1 | F3: 57 | G3: =In_PP!G3 -> 10.4
A4: 32*32 | B4: 32 | C4: 32 | D4: 16.3 | E4: 16.3 | F4: 58 | G4: =In_PP!G4 -> 12.7
A5: 40*40 | B5: 40 | C5: 40 | D5: 17.3 | E5: 17.3 | F5: 60 | G5: =In_PP!G5 -> 12.7
A6: 50*50 | B6: 50 | C6: 50 | D6: 17.1 | E6: 17.1 | F6: 66 | G6: =In_PP!G6 -> 15.9
A7: 65*65 | B7: 65 | C7: 65 | D7: 19 | E7: 19 | F7: 73 | G7: =In_PP!G7 -> 17.5
A8: 80*80 | B8: 80 | C8: 80 | D8: 19.9 | E8: 19.9 | F8: 81 | G8: =In_PP!G8 -> 20.6
A9: 100*100 | B9: 100 | C9: 100 | D9: 20.6 | E9: 20.6 | F9: 92 | G9: =In_PP!G9 -> 25.4
A10: 125*125 | B10: 125 | C10: 125 | D10: 23.4 | E10: 23.4 | F10: 104 | G10: =In_PP!G10 -> 28.6
A11: 150*150 | B11: 150 | C11: 150 | D11: 29.1 | E11: 29.1 | F11: 116 | G11: =In_PP!G11 -> 28.9
